{"text_format":"3","workbook":"xlsx","n_sheets":3,"sheets":["Roadmap data","Agile Roadmap","About"],"not_rendered":{"defined_names":5},"read":"whole","date_system":"1900"}

{"sheet":"Roadmap data","index":0,"n_rows":13,"n_cols":7,"rows_kept":13,"merged":[[12,1,12,4]]}
["Create an Agile Roadmap by entering important milestones or activities in the Roadmap Data table in this worksheet.\nThe title of this worksheet is in cell B1. \nInformation about how to use this worksheet, including instructions for screen readers is in the About worksheet.\nContinue navigating down column A for further instructions.","Agile Timeline Data"]
["Table headings are in cells B2 to E2. Use heading filters to sort the table and find specific items.\nThe Agile Roadmap works best when the table is sorted in Ascending order by Priority, followed by Milestone or Activity.\nSample data is in the Roadmap Data table from cells B3 to E12. \nWhen a milestone or activity is completed, update the corresponding Result field to show the results in the Agile Roadmap worksheet. Enter “No Change” to highlight milestones with no impact.\nContinue to cell A13 for the next instruction.\n","Target","Milestone or Activity","Priority","Result",null,"<-- sort table by Priority and Milestone or Activity, in ascending order"]
[null,"Current","Activity 1\nBuild prototype","1 - High",null,null,"<-- add a result for each completed Milestone. Enter “No Change” to highlight milestones with no impact."]
[null,"Near-term","Activity 2\nDemo prototype","1 - High"]
[null,"Current","Activity 6","1 - High"]
[null,"Future","Activity 7\nOutsource Development of stage-one implementation","1 - High"]
[null,"Completed","Activity 9\nStage one approved","1 - High","Decrease by 10%"]
[null,"Future","Activity 10","2 - Med"]
[null,"Near-term","Activity 8","2 - Med"]
[null,"Completed","Activity 3","3 - Low","No Change"]
[null,"Future","Activity 4","3 - Low"]
[null,"Current","Activity 5","3 - Low"]
["Add new items by inserting new rows into the table above this line.\nThis is the last instruction in this worksheet.","Add new items by inserting new rows above this line"]

{"sheet":"Agile Roadmap","index":1,"n_rows":100,"n_cols":8,"rows_kept":100}
["An Agile Roadmap displaying milestones and activities from Raodmap Data worksheet is in this worksheet. \nTitle is in cell B1. \nResults that have the phrase “No Change” are highlighted in light orange, rgb(255, 230, 210).\nCompleted milestones or activities are highlighted in light green, rgb(237,251,219).","Agile Roadmap"]
["Chart headings are in cells B2, D2, F2 and H2. They read: Completed, Current, Near-term and Future. Modify these headings to change the Target selection values in the Roadmap Data table in the Roadmap Data worksheet.\nCells B3 to H20 contain the Milestones and activities for the headings in this row. \nMilestones and activities are created in the Roadmap Data worksheet.\nDo NOT modify or delete entries in this worksheet. Update the Roadmap Data table in the Roadmap Data worksheet to update content in this worksheet.\nThis is the last instruction in this worksheet.","Completed",null,"Current",null,"Near-term",null,"Future"]
[null,{"$f":"IFERROR(INDEX(Activity,SMALL(IF(Target=$B$2,ROW(Activity)-MIN(ROW(Activity))+1),ROWS($B$3:B3)))&\" \"&CHAR(10)&(INDEX(Result,SMALL(IF(Target=$B$2,ROW(Result)-MIN(ROW(Result))+1),ROWS($B$3:B3))))&CHAR(10),\"\")","v":"Activity 9\nStage one approved \nDecrease by 10%\n"},null,{"$f":"IFERROR(INDEX(Activity,SMALL(IF(Target=$D$2,ROW(Activity)-MIN(ROW(Activity))+1),ROWS($B$3:B3)))&CHAR(10),\"\")","v":"Activity 1\nBuild prototype\n"},null,{"$f":"IFERROR(INDEX(Activity,SMALL(IF(Target=$F$2,ROW(Activity)-MIN(ROW(Activity))+1),ROWS($B$3:B3)))&CHAR(10),\"\")","v":"Activity 2\nDemo prototype\n"},null,{"$f":"IFERROR(INDEX(Activity,SMALL(IF(Target=$H$2,ROW(Activity)-MIN(ROW(Activity))+1),ROWS($B$3:B3)))&CHAR(10),\"\")","v":"Activity 7\nOutsource Development of stage-one implementation\n"}]
[null,{"$f":"IFERROR(INDEX(Activity,SMALL(IF(Target=$B$2,ROW(Activity)-MIN(ROW(Activity))+1),ROWS($B$3:B4)))&\" \"&CHAR(10)&(INDEX(Result,SMALL(IF(Target=$B$2,ROW(Result)-MIN(ROW(Result))+1),ROWS($B$3:B4))))&CHAR(10),\"\")","v":"Activity 3 \nNo Change\n"},null,{"$f":"IFERROR(INDEX(Activity,SMALL(IF(Target=$D$2,ROW(Activity)-MIN(ROW(Activity))+1),ROWS($B$3:B4)))&CHAR(10),\"\")","v":"Activity 6\n"},null,{"$f":"IFERROR(INDEX(Activity,SMALL(IF(Target=$F$2,ROW(Activity)-MIN(ROW(Activity))+1),ROWS($B$3:B4)))&CHAR(10),\"\")","v":"Activity 8\n"},null,{"$f":"IFERROR(INDEX(Activity,SMALL(IF(Target=$H$2,ROW(Activity)-MIN(ROW(Activity))+1),ROWS($B$3:B4)))&CHAR(10),\"\")","v":"Activity 10\n"}]
[null,{"$f":"IFERROR(INDEX(Activity,SMALL(IF(Target=$B$2,ROW(Activity)-MIN(ROW(Activity))+1),ROWS($B$3:B5)))&\" \"&CHAR(10)&(INDEX(Result,SMALL(IF(Target=$B$2,ROW(Result)-MIN(ROW(Result))+1),ROWS($B$3:B5))))&CHAR(10),\"\")","v":""},null,{"$f":"IFERROR(INDEX(Activity,SMALL(IF(Target=$D$2,ROW(Activity)-MIN(ROW(Activity))+1),ROWS($B$3:B5)))&CHAR(10),\"\")","v":"Activity 5\n"},null,{"$f":"IFERROR(INDEX(Activity,SMALL(IF(Target=$F$2,ROW(Activity)-MIN(ROW(Activity))+1),ROWS($B$3:B5)))&CHAR(10),\"\")","v":""},null,{"$f":"IFERROR(INDEX(Activity,SMALL(IF(Target=$H$2,ROW(Activity)-MIN(ROW(Activity))+1),ROWS($B$3:B5)))&CHAR(10),\"\")","v":"Activity 4\n"}]
[null,{"$f":"IFERROR(INDEX(Activity,SMALL(IF(Target=$B$2,ROW(Activity)-MIN(ROW(Activity))+1),ROWS($B$3:B6)))&\" \"&CHAR(10)&(INDEX(Result,SMALL(IF(Target=$B$2,ROW(Result)-MIN(ROW(Result))+1),ROWS($B$3:B6))))&CHAR(10),\"\")","v":""},null,{"$f":"IFERROR(INDEX(Activity,SMALL(IF(Target=$D$2,ROW(Activity)-MIN(ROW(Activity))+1),ROWS($B$3:B6)))&CHAR(10),\"\")","v":""},null,{"$f":"IFERROR(INDEX(Activity,SMALL(IF(Target=$F$2,ROW(Activity)-MIN(ROW(Activity))+1),ROWS($B$3:B6)))&CHAR(10),\"\")","v":""},null,{"$f":"IFERROR(INDEX(Activity,SMALL(IF(Target=$H$2,ROW(Activity)-MIN(ROW(Activity))+1),ROWS($B$3:B6)))&CHAR(10),\"\")","v":""}]
[null,{"$f":"IFERROR(INDEX(Activity,SMALL(IF(Target=$B$2,ROW(Activity)-MIN(ROW(Activity))+1),ROWS($B$3:B7)))&\" \"&CHAR(10)&(INDEX(Result,SMALL(IF(Target=$B$2,ROW(Result)-MIN(ROW(Result))+1),ROWS($B$3:B7))))&CHAR(10),\"\")","v":""},null,{"$f":"IFERROR(INDEX(Activity,SMALL(IF(Target=$D$2,ROW(Activity)-MIN(ROW(Activity))+1),ROWS($B$3:B7)))&CHAR(10),\"\")","v":""},null,{"$f":"IFERROR(INDEX(Activity,SMALL(IF(Target=$F$2,ROW(Activity)-MIN(ROW(Activity))+1),ROWS($B$3:B7)))&CHAR(10),\"\")","v":""},null,{"$f":"IFERROR(INDEX(Activity,SMALL(IF(Target=$H$2,ROW(Activity)-MIN(ROW(Activity))+1),ROWS($B$3:B7)))&CHAR(10),\"\")","v":""}]
[null,{"$f":"IFERROR(INDEX(Activity,SMALL(IF(Target=$B$2,ROW(Activity)-MIN(ROW(Activity))+1),ROWS($B$3:B8)))&\" \"&CHAR(10)&(INDEX(Result,SMALL(IF(Target=$B$2,ROW(Result)-MIN(ROW(Result))+1),ROWS($B$3:B8))))&CHAR(10),\"\")","v":""},null,{"$f":"IFERROR(INDEX(Activity,SMALL(IF(Target=$D$2,ROW(Activity)-MIN(ROW(Activity))+1),ROWS($B$3:B8)))&CHAR(10),\"\")","v":""},null,{"$f":"IFERROR(INDEX(Activity,SMALL(IF(Target=$F$2,ROW(Activity)-MIN(ROW(Activity))+1),ROWS($B$3:B8)))&CHAR(10),\"\")","v":""},null,{"$f":"IFERROR(INDEX(Activity,SMALL(IF(Target=$H$2,ROW(Activity)-MIN(ROW(Activity))+1),ROWS($B$3:B8)))&CHAR(10),\"\")","v":""}]
[null,{"$f":"IFERROR(INDEX(Activity,SMALL(IF(Target=$B$2,ROW(Activity)-MIN(ROW(Activity))+1),ROWS($B$3:B9)))&\" \"&CHAR(10)&(INDEX(Result,SMALL(IF(Target=$B$2,ROW(Result)-MIN(ROW(Result))+1),ROWS($B$3:B9))))&CHAR(10),\"\")","v":""},null,{"$f":"IFERROR(INDEX(Activity,SMALL(IF(Target=$D$2,ROW(Activity)-MIN(ROW(Activity))+1),ROWS($B$3:B9)))&CHAR(10),\"\")","v":""},null,{"$f":"IFERROR(INDEX(Activity,SMALL(IF(Target=$F$2,ROW(Activity)-MIN(ROW(Activity))+1),ROWS($B$3:B9)))&CHAR(10),\"\")","v":""},null,{"$f":"IFERROR(INDEX(Activity,SMALL(IF(Target=$H$2,ROW(Activity)-MIN(ROW(Activity))+1),ROWS($B$3:B9)))&CHAR(10),\"\")","v":""}]
[null,{"$f":"IFERROR(INDEX(Activity,SMALL(IF(Target=$B$2,ROW(Activity)-MIN(ROW(Activity))+1),ROWS($B$3:B10)))&\" \"&CHAR(10)&(INDEX(Result,SMALL(IF(Target=$B$2,ROW(Result)-MIN(ROW(Result))+1),ROWS($B$3:B10))))&CHAR(10),\"\")","v":""},null,{"$f":"IFERROR(INDEX(Activity,SMALL(IF(Target=$D$2,ROW(Activity)-MIN(ROW(Activity))+1),ROWS($B$3:B10)))&CHAR(10),\"\")","v":""},null,{"$f":"IFERROR(INDEX(Activity,SMALL(IF(Target=$F$2,ROW(Activity)-MIN(ROW(Activity))+1),ROWS($B$3:B10)))&CHAR(10),\"\")","v":""},null,{"$f":"IFERROR(INDEX(Activity,SMALL(IF(Target=$H$2,ROW(Activity)-MIN(ROW(Activity))+1),ROWS($B$3:B10)))&CHAR(10),\"\")","v":""}]
[null,{"$f":"IFERROR(INDEX(Activity,SMALL(IF(Target=$B$2,ROW(Activity)-MIN(ROW(Activity))+1),ROWS($B$3:B11)))&\" \"&CHAR(10)&(INDEX(Result,SMALL(IF(Target=$B$2,ROW(Result)-MIN(ROW(Result))+1),ROWS($B$3:B11))))&CHAR(10),\"\")","v":""},null,{"$f":"IFERROR(INDEX(Activity,SMALL(IF(Target=$D$2,ROW(Activity)-MIN(ROW(Activity))+1),ROWS($B$3:B11)))&CHAR(10),\"\")","v":""},null,{"$f":"IFERROR(INDEX(Activity,SMALL(IF(Target=$F$2,ROW(Activity)-MIN(ROW(Activity))+1),ROWS($B$3:B11)))&CHAR(10),\"\")","v":""},null,{"$f":"IFERROR(INDEX(Activity,SMALL(IF(Target=$H$2,ROW(Activity)-MIN(ROW(Activity))+1),ROWS($B$3:B11)))&CHAR(10),\"\")","v":""}]
[null,{"$f":"IFERROR(INDEX(Activity,SMALL(IF(Target=$B$2,ROW(Activity)-MIN(ROW(Activity))+1),ROWS($B$3:B12)))&\" \"&CHAR(10)&(INDEX(Result,SMALL(IF(Target=$B$2,ROW(Result)-MIN(ROW(Result))+1),ROWS($B$3:B12))))&CHAR(10),\"\")","v":""},null,{"$f":"IFERROR(INDEX(Activity,SMALL(IF(Target=$D$2,ROW(Activity)-MIN(ROW(Activity))+1),ROWS($B$3:B12)))&CHAR(10),\"\")","v":""},null,{"$f":"IFERROR(INDEX(Activity,SMALL(IF(Target=$F$2,ROW(Activity)-MIN(ROW(Activity))+1),ROWS($B$3:B12)))&CHAR(10),\"\")","v":""},null,{"$f":"IFERROR(INDEX(Activity,SMALL(IF(Target=$H$2,ROW(Activity)-MIN(ROW(Activity))+1),ROWS($B$3:B12)))&CHAR(10),\"\")","v":""}]
[null,{"$f":"IFERROR(INDEX(Activity,SMALL(IF(Target=$B$2,ROW(Activity)-MIN(ROW(Activity))+1),ROWS($B$3:B13)))&\" \"&CHAR(10)&(INDEX(Result,SMALL(IF(Target=$B$2,ROW(Result)-MIN(ROW(Result))+1),ROWS($B$3:B13))))&CHAR(10),\"\")","v":""},null,{"$f":"IFERROR(INDEX(Activity,SMALL(IF(Target=$D$2,ROW(Activity)-MIN(ROW(Activity))+1),ROWS($B$3:B13)))&CHAR(10),\"\")","v":""},null,{"$f":"IFERROR(INDEX(Activity,SMALL(IF(Target=$F$2,ROW(Activity)-MIN(ROW(Activity))+1),ROWS($B$3:B13)))&CHAR(10),\"\")","v":""},null,{"$f":"IFERROR(INDEX(Activity,SMALL(IF(Target=$H$2,ROW(Activity)-MIN(ROW(Activity))+1),ROWS($B$3:B13)))&CHAR(10),\"\")","v":""}]
[null,{"$f":"IFERROR(INDEX(Activity,SMALL(IF(Target=$B$2,ROW(Activity)-MIN(ROW(Activity))+1),ROWS($B$3:B14)))&\" \"&CHAR(10)&(INDEX(Result,SMALL(IF(Target=$B$2,ROW(Result)-MIN(ROW(Result))+1),ROWS($B$3:B14))))&CHAR(10),\"\")","v":""},null,{"$f":"IFERROR(INDEX(Activity,SMALL(IF(Target=$D$2,ROW(Activity)-MIN(ROW(Activity))+1),ROWS($B$3:B14)))&CHAR(10),\"\")","v":""},null,{"$f":"IFERROR(INDEX(Activity,SMALL(IF(Target=$F$2,ROW(Activity)-MIN(ROW(Activity))+1),ROWS($B$3:B14)))&CHAR(10),\"\")","v":""},null,{"$f":"IFERROR(INDEX(Activity,SMALL(IF(Target=$H$2,ROW(Activity)-MIN(ROW(Activity))+1),ROWS($B$3:B14)))&CHAR(10),\"\")","v":""}]
[null,{"$f":"IFERROR(INDEX(Activity,SMALL(IF(Target=$B$2,ROW(Activity)-MIN(ROW(Activity))+1),ROWS($B$3:B15)))&\" \"&CHAR(10)&(INDEX(Result,SMALL(IF(Target=$B$2,ROW(Result)-MIN(ROW(Result))+1),ROWS($B$3:B15))))&CHAR(10),\"\")","v":""},null,{"$f":"IFERROR(INDEX(Activity,SMALL(IF(Target=$D$2,ROW(Activity)-MIN(ROW(Activity))+1),ROWS($B$3:B15)))&CHAR(10),\"\")","v":""},null,{"$f":"IFERROR(INDEX(Activity,SMALL(IF(Target=$F$2,ROW(Activity)-MIN(ROW(Activity))+1),ROWS($B$3:B15)))&CHAR(10),\"\")","v":""},null,{"$f":"IFERROR(INDEX(Activity,SMALL(IF(Target=$H$2,ROW(Activity)-MIN(ROW(Activity))+1),ROWS($B$3:B15)))&CHAR(10),\"\")","v":""}]
[null,{"$f":"IFERROR(INDEX(Activity,SMALL(IF(Target=$B$2,ROW(Activity)-MIN(ROW(Activity))+1),ROWS($B$3:B16)))&\" \"&CHAR(10)&(INDEX(Result,SMALL(IF(Target=$B$2,ROW(Result)-MIN(ROW(Result))+1),ROWS($B$3:B16))))&CHAR(10),\"\")","v":""},null,{"$f":"IFERROR(INDEX(Activity,SMALL(IF(Target=$D$2,ROW(Activity)-MIN(ROW(Activity))+1),ROWS($B$3:B16)))&CHAR(10),\"\")","v":""},null,{"$f":"IFERROR(INDEX(Activity,SMALL(IF(Target=$F$2,ROW(Activity)-MIN(ROW(Activity))+1),ROWS($B$3:B16)))&CHAR(10),\"\")","v":""},null,{"$f":"IFERROR(INDEX(Activity,SMALL(IF(Target=$H$2,ROW(Activity)-MIN(ROW(Activity))+1),ROWS($B$3:B16)))&CHAR(10),\"\")","v":""}]
[null,{"$f":"IFERROR(INDEX(Activity,SMALL(IF(Target=$B$2,ROW(Activity)-MIN(ROW(Activity))+1),ROWS($B$3:B17)))&\" \"&CHAR(10)&(INDEX(Result,SMALL(IF(Target=$B$2,ROW(Result)-MIN(ROW(Result))+1),ROWS($B$3:B17))))&CHAR(10),\"\")","v":""},null,{"$f":"IFERROR(INDEX(Activity,SMALL(IF(Target=$D$2,ROW(Activity)-MIN(ROW(Activity))+1),ROWS($B$3:B17)))&CHAR(10),\"\")","v":""},null,{"$f":"IFERROR(INDEX(Activity,SMALL(IF(Target=$F$2,ROW(Activity)-MIN(ROW(Activity))+1),ROWS($B$3:B17)))&CHAR(10),\"\")","v":""},null,{"$f":"IFERROR(INDEX(Activity,SMALL(IF(Target=$H$2,ROW(Activity)-MIN(ROW(Activity))+1),ROWS($B$3:B17)))&CHAR(10),\"\")","v":""}]
[null,{"$f":"IFERROR(INDEX(Activity,SMALL(IF(Target=$B$2,ROW(Activity)-MIN(ROW(Activity))+1),ROWS($B$3:B18)))&\" \"&CHAR(10)&(INDEX(Result,SMALL(IF(Target=$B$2,ROW(Result)-MIN(ROW(Result))+1),ROWS($B$3:B18))))&CHAR(10),\"\")","v":""},null,{"$f":"IFERROR(INDEX(Activity,SMALL(IF(Target=$D$2,ROW(Activity)-MIN(ROW(Activity))+1),ROWS($B$3:B18)))&CHAR(10),\"\")","v":""},null,{"$f":"IFERROR(INDEX(Activity,SMALL(IF(Target=$F$2,ROW(Activity)-MIN(ROW(Activity))+1),ROWS($B$3:B18)))&CHAR(10),\"\")","v":""},null,{"$f":"IFERROR(INDEX(Activity,SMALL(IF(Target=$H$2,ROW(Activity)-MIN(ROW(Activity))+1),ROWS($B$3:B18)))&CHAR(10),\"\")","v":""}]
[null,{"$f":"IFERROR(INDEX(Activity,SMALL(IF(Target=$B$2,ROW(Activity)-MIN(ROW(Activity))+1),ROWS($B$3:B19)))&\" \"&CHAR(10)&(INDEX(Result,SMALL(IF(Target=$B$2,ROW(Result)-MIN(ROW(Result))+1),ROWS($B$3:B19))))&CHAR(10),\"\")","v":""},null,{"$f":"IFERROR(INDEX(Activity,SMALL(IF(Target=$D$2,ROW(Activity)-MIN(ROW(Activity))+1),ROWS($B$3:B19)))&CHAR(10),\"\")","v":""},null,{"$f":"IFERROR(INDEX(Activity,SMALL(IF(Target=$F$2,ROW(Activity)-MIN(ROW(Activity))+1),ROWS($B$3:B19)))&CHAR(10),\"\")","v":""},null,{"$f":"IFERROR(INDEX(Activity,SMALL(IF(Target=$H$2,ROW(Activity)-MIN(ROW(Activity))+1),ROWS($B$3:B19)))&CHAR(10),\"\")","v":""}]
[null,{"$f":"IFERROR(INDEX(Activity,SMALL(IF(Target=$B$2,ROW(Activity)-MIN(ROW(Activity))+1),ROWS($B$3:B20)))&\" \"&CHAR(10)&(INDEX(Result,SMALL(IF(Target=$B$2,ROW(Result)-MIN(ROW(Result))+1),ROWS($B$3:B20))))&CHAR(10),\"\")","v":""},null,{"$f":"IFERROR(INDEX(Activity,SMALL(IF(Target=$D$2,ROW(Activity)-MIN(ROW(Activity))+1),ROWS($B$3:B20)))&CHAR(10),\"\")","v":""},null,{"$f":"IFERROR(INDEX(Activity,SMALL(IF(Target=$F$2,ROW(Activity)-MIN(ROW(Activity))+1),ROWS($B$3:B20)))&CHAR(10),\"\")","v":""},null,{"$f":"IFERROR(INDEX(Activity,SMALL(IF(Target=$H$2,ROW(Activity)-MIN(ROW(Activity))+1),ROWS($B$3:B20)))&CHAR(10),\"\")","v":""}]
[null,{"$f":"IFERROR(INDEX(Activity,SMALL(IF(Target=$B$2,ROW(Activity)-MIN(ROW(Activity))+1),ROWS($B$3:B21)))&\" \"&CHAR(10)&(INDEX(Result,SMALL(IF(Target=$B$2,ROW(Result)-MIN(ROW(Result))+1),ROWS($B$3:B21))))&CHAR(10),\"\")","v":""},null,{"$f":"IFERROR(INDEX(Activity,SMALL(IF(Target=$D$2,ROW(Activity)-MIN(ROW(Activity))+1),ROWS($B$3:B21)))&CHAR(10),\"\")","v":""},null,{"$f":"IFERROR(INDEX(Activity,SMALL(IF(Target=$F$2,ROW(Activity)-MIN(ROW(Activity))+1),ROWS($B$3:B21)))&CHAR(10),\"\")","v":""},null,{"$f":"IFERROR(INDEX(Activity,SMALL(IF(Target=$H$2,ROW(Activity)-MIN(ROW(Activity))+1),ROWS($B$3:B21)))&CHAR(10),\"\")","v":""}]
[null,{"$f":"IFERROR(INDEX(Activity,SMALL(IF(Target=$B$2,ROW(Activity)-MIN(ROW(Activity))+1),ROWS($B$3:B22)))&\" \"&CHAR(10)&(INDEX(Result,SMALL(IF(Target=$B$2,ROW(Result)-MIN(ROW(Result))+1),ROWS($B$3:B22))))&CHAR(10),\"\")","v":""},null,{"$f":"IFERROR(INDEX(Activity,SMALL(IF(Target=$D$2,ROW(Activity)-MIN(ROW(Activity))+1),ROWS($B$3:B22)))&CHAR(10),\"\")","v":""},null,{"$f":"IFERROR(INDEX(Activity,SMALL(IF(Target=$F$2,ROW(Activity)-MIN(ROW(Activity))+1),ROWS($B$3:B22)))&CHAR(10),\"\")","v":""},null,{"$f":"IFERROR(INDEX(Activity,SMALL(IF(Target=$H$2,ROW(Activity)-MIN(ROW(Activity))+1),ROWS($B$3:B22)))&CHAR(10),\"\")","v":""}]
[null,{"$f":"IFERROR(INDEX(Activity,SMALL(IF(Target=$B$2,ROW(Activity)-MIN(ROW(Activity))+1),ROWS($B$3:B23)))&\" \"&CHAR(10)&(INDEX(Result,SMALL(IF(Target=$B$2,ROW(Result)-MIN(ROW(Result))+1),ROWS($B$3:B23))))&CHAR(10),\"\")","v":""},null,{"$f":"IFERROR(INDEX(Activity,SMALL(IF(Target=$D$2,ROW(Activity)-MIN(ROW(Activity))+1),ROWS($B$3:B23)))&CHAR(10),\"\")","v":""},null,{"$f":"IFERROR(INDEX(Activity,SMALL(IF(Target=$F$2,ROW(Activity)-MIN(ROW(Activity))+1),ROWS($B$3:B23)))&CHAR(10),\"\")","v":""},null,{"$f":"IFERROR(INDEX(Activity,SMALL(IF(Target=$H$2,ROW(Activity)-MIN(ROW(Activity))+1),ROWS($B$3:B23)))&CHAR(10),\"\")","v":""}]
[null,{"$f":"IFERROR(INDEX(Activity,SMALL(IF(Target=$B$2,ROW(Activity)-MIN(ROW(Activity))+1),ROWS($B$3:B24)))&\" \"&CHAR(10)&(INDEX(Result,SMALL(IF(Target=$B$2,ROW(Result)-MIN(ROW(Result))+1),ROWS($B$3:B24))))&CHAR(10),\"\")","v":""},null,{"$f":"IFERROR(INDEX(Activity,SMALL(IF(Target=$D$2,ROW(Activity)-MIN(ROW(Activity))+1),ROWS($B$3:B24)))&CHAR(10),\"\")","v":""},null,{"$f":"IFERROR(INDEX(Activity,SMALL(IF(Target=$F$2,ROW(Activity)-MIN(ROW(Activity))+1),ROWS($B$3:B24)))&CHAR(10),\"\")","v":""},null,{"$f":"IFERROR(INDEX(Activity,SMALL(IF(Target=$H$2,ROW(Activity)-MIN(ROW(Activity))+1),ROWS($B$3:B24)))&CHAR(10),\"\")","v":""}]
[null,{"$f":"IFERROR(INDEX(Activity,SMALL(IF(Target=$B$2,ROW(Activity)-MIN(ROW(Activity))+1),ROWS($B$3:B25)))&\" \"&CHAR(10)&(INDEX(Result,SMALL(IF(Target=$B$2,ROW(Result)-MIN(ROW(Result))+1),ROWS($B$3:B25))))&CHAR(10),\"\")","v":""},null,{"$f":"IFERROR(INDEX(Activity,SMALL(IF(Target=$D$2,ROW(Activity)-MIN(ROW(Activity))+1),ROWS($B$3:B25)))&CHAR(10),\"\")","v":""},null,{"$f":"IFERROR(INDEX(Activity,SMALL(IF(Target=$F$2,ROW(Activity)-MIN(ROW(Activity))+1),ROWS($B$3:B25)))&CHAR(10),\"\")","v":""},null,{"$f":"IFERROR(INDEX(Activity,SMALL(IF(Target=$H$2,ROW(Activity)-MIN(ROW(Activity))+1),ROWS($B$3:B25)))&CHAR(10),\"\")","v":""}]
[null,{"$f":"IFERROR(INDEX(Activity,SMALL(IF(Target=$B$2,ROW(Activity)-MIN(ROW(Activity))+1),ROWS($B$3:B26)))&\" \"&CHAR(10)&(INDEX(Result,SMALL(IF(Target=$B$2,ROW(Result)-MIN(ROW(Result))+1),ROWS($B$3:B26))))&CHAR(10),\"\")","v":""},null,{"$f":"IFERROR(INDEX(Activity,SMALL(IF(Target=$D$2,ROW(Activity)-MIN(ROW(Activity))+1),ROWS($B$3:B26)))&CHAR(10),\"\")","v":""},null,{"$f":"IFERROR(INDEX(Activity,SMALL(IF(Target=$F$2,ROW(Activity)-MIN(ROW(Activity))+1),ROWS($B$3:B26)))&CHAR(10),\"\")","v":""},null,{"$f":"IFERROR(INDEX(Activity,SMALL(IF(Target=$H$2,ROW(Activity)-MIN(ROW(Activity))+1),ROWS($B$3:B26)))&CHAR(10),\"\")","v":""}]
[null,{"$f":"IFERROR(INDEX(Activity,SMALL(IF(Target=$B$2,ROW(Activity)-MIN(ROW(Activity))+1),ROWS($B$3:B27)))&\" \"&CHAR(10)&(INDEX(Result,SMALL(IF(Target=$B$2,ROW(Result)-MIN(ROW(Result))+1),ROWS($B$3:B27))))&CHAR(10),\"\")","v":""},null,{"$f":"IFERROR(INDEX(Activity,SMALL(IF(Target=$D$2,ROW(Activity)-MIN(ROW(Activity))+1),ROWS($B$3:B27)))&CHAR(10),\"\")","v":""},null,{"$f":"IFERROR(INDEX(Activity,SMALL(IF(Target=$F$2,ROW(Activity)-MIN(ROW(Activity))+1),ROWS($B$3:B27)))&CHAR(10),\"\")","v":""},null,{"$f":"IFERROR(INDEX(Activity,SMALL(IF(Target=$H$2,ROW(Activity)-MIN(ROW(Activity))+1),ROWS($B$3:B27)))&CHAR(10),\"\")","v":""}]
[null,{"$f":"IFERROR(INDEX(Activity,SMALL(IF(Target=$B$2,ROW(Activity)-MIN(ROW(Activity))+1),ROWS($B$3:B28)))&\" \"&CHAR(10)&(INDEX(Result,SMALL(IF(Target=$B$2,ROW(Result)-MIN(ROW(Result))+1),ROWS($B$3:B28))))&CHAR(10),\"\")","v":""},null,{"$f":"IFERROR(INDEX(Activity,SMALL(IF(Target=$D$2,ROW(Activity)-MIN(ROW(Activity))+1),ROWS($B$3:B28)))&CHAR(10),\"\")","v":""},null,{"$f":"IFERROR(INDEX(Activity,SMALL(IF(Target=$F$2,ROW(Activity)-MIN(ROW(Activity))+1),ROWS($B$3:B28)))&CHAR(10),\"\")","v":""},null,{"$f":"IFERROR(INDEX(Activity,SMALL(IF(Target=$H$2,ROW(Activity)-MIN(ROW(Activity))+1),ROWS($B$3:B28)))&CHAR(10),\"\")","v":""}]
[null,{"$f":"IFERROR(INDEX(Activity,SMALL(IF(Target=$B$2,ROW(Activity)-MIN(ROW(Activity))+1),ROWS($B$3:B29)))&\" \"&CHAR(10)&(INDEX(Result,SMALL(IF(Target=$B$2,ROW(Result)-MIN(ROW(Result))+1),ROWS($B$3:B29))))&CHAR(10),\"\")","v":""},null,{"$f":"IFERROR(INDEX(Activity,SMALL(IF(Target=$D$2,ROW(Activity)-MIN(ROW(Activity))+1),ROWS($B$3:B29)))&CHAR(10),\"\")","v":""},null,{"$f":"IFERROR(INDEX(Activity,SMALL(IF(Target=$F$2,ROW(Activity)-MIN(ROW(Activity))+1),ROWS($B$3:B29)))&CHAR(10),\"\")","v":""},null,{"$f":"IFERROR(INDEX(Activity,SMALL(IF(Target=$H$2,ROW(Activity)-MIN(ROW(Activity))+1),ROWS($B$3:B29)))&CHAR(10),\"\")","v":""}]
[null,{"$f":"IFERROR(INDEX(Activity,SMALL(IF(Target=$B$2,ROW(Activity)-MIN(ROW(Activity))+1),ROWS($B$3:B30)))&\" \"&CHAR(10)&(INDEX(Result,SMALL(IF(Target=$B$2,ROW(Result)-MIN(ROW(Result))+1),ROWS($B$3:B30))))&CHAR(10),\"\")","v":""},null,{"$f":"IFERROR(INDEX(Activity,SMALL(IF(Target=$D$2,ROW(Activity)-MIN(ROW(Activity))+1),ROWS($B$3:B30)))&CHAR(10),\"\")","v":""},null,{"$f":"IFERROR(INDEX(Activity,SMALL(IF(Target=$F$2,ROW(Activity)-MIN(ROW(Activity))+1),ROWS($B$3:B30)))&CHAR(10),\"\")","v":""},null,{"$f":"IFERROR(INDEX(Activity,SMALL(IF(Target=$H$2,ROW(Activity)-MIN(ROW(Activity))+1),ROWS($B$3:B30)))&CHAR(10),\"\")","v":""}]
[null,{"$f":"IFERROR(INDEX(Activity,SMALL(IF(Target=$B$2,ROW(Activity)-MIN(ROW(Activity))+1),ROWS($B$3:B31)))&\" \"&CHAR(10)&(INDEX(Result,SMALL(IF(Target=$B$2,ROW(Result)-MIN(ROW(Result))+1),ROWS($B$3:B31))))&CHAR(10),\"\")","v":""},null,{"$f":"IFERROR(INDEX(Activity,SMALL(IF(Target=$D$2,ROW(Activity)-MIN(ROW(Activity))+1),ROWS($B$3:B31)))&CHAR(10),\"\")","v":""},null,{"$f":"IFERROR(INDEX(Activity,SMALL(IF(Target=$F$2,ROW(Activity)-MIN(ROW(Activity))+1),ROWS($B$3:B31)))&CHAR(10),\"\")","v":""},null,{"$f":"IFERROR(INDEX(Activity,SMALL(IF(Target=$H$2,ROW(Activity)-MIN(ROW(Activity))+1),ROWS($B$3:B31)))&CHAR(10),\"\")","v":""}]
[null,{"$f":"IFERROR(INDEX(Activity,SMALL(IF(Target=$B$2,ROW(Activity)-MIN(ROW(Activity))+1),ROWS($B$3:B32)))&\" \"&CHAR(10)&(INDEX(Result,SMALL(IF(Target=$B$2,ROW(Result)-MIN(ROW(Result))+1),ROWS($B$3:B32))))&CHAR(10),\"\")","v":""},null,{"$f":"IFERROR(INDEX(Activity,SMALL(IF(Target=$D$2,ROW(Activity)-MIN(ROW(Activity))+1),ROWS($B$3:B32)))&CHAR(10),\"\")","v":""},null,{"$f":"IFERROR(INDEX(Activity,SMALL(IF(Target=$F$2,ROW(Activity)-MIN(ROW(Activity))+1),ROWS($B$3:B32)))&CHAR(10),\"\")","v":""},null,{"$f":"IFERROR(INDEX(Activity,SMALL(IF(Target=$H$2,ROW(Activity)-MIN(ROW(Activity))+1),ROWS($B$3:B32)))&CHAR(10),\"\")","v":""}]
[null,{"$f":"IFERROR(INDEX(Activity,SMALL(IF(Target=$B$2,ROW(Activity)-MIN(ROW(Activity))+1),ROWS($B$3:B33)))&\" \"&CHAR(10)&(INDEX(Result,SMALL(IF(Target=$B$2,ROW(Result)-MIN(ROW(Result))+1),ROWS($B$3:B33))))&CHAR(10),\"\")","v":""},null,{"$f":"IFERROR(INDEX(Activity,SMALL(IF(Target=$D$2,ROW(Activity)-MIN(ROW(Activity))+1),ROWS($B$3:B33)))&CHAR(10),\"\")","v":""},null,{"$f":"IFERROR(INDEX(Activity,SMALL(IF(Target=$F$2,ROW(Activity)-MIN(ROW(Activity))+1),ROWS($B$3:B33)))&CHAR(10),\"\")","v":""},null,{"$f":"IFERROR(INDEX(Activity,SMALL(IF(Target=$H$2,ROW(Activity)-MIN(ROW(Activity))+1),ROWS($B$3:B33)))&CHAR(10),\"\")","v":""}]
[null,{"$f":"IFERROR(INDEX(Activity,SMALL(IF(Target=$B$2,ROW(Activity)-MIN(ROW(Activity))+1),ROWS($B$3:B34)))&\" \"&CHAR(10)&(INDEX(Result,SMALL(IF(Target=$B$2,ROW(Result)-MIN(ROW(Result))+1),ROWS($B$3:B34))))&CHAR(10),\"\")","v":""},null,{"$f":"IFERROR(INDEX(Activity,SMALL(IF(Target=$D$2,ROW(Activity)-MIN(ROW(Activity))+1),ROWS($B$3:B34)))&CHAR(10),\"\")","v":""},null,{"$f":"IFERROR(INDEX(Activity,SMALL(IF(Target=$F$2,ROW(Activity)-MIN(ROW(Activity))+1),ROWS($B$3:B34)))&CHAR(10),\"\")","v":""},null,{"$f":"IFERROR(INDEX(Activity,SMALL(IF(Target=$H$2,ROW(Activity)-MIN(ROW(Activity))+1),ROWS($B$3:B34)))&CHAR(10),\"\")","v":""}]
[null,{"$f":"IFERROR(INDEX(Activity,SMALL(IF(Target=$B$2,ROW(Activity)-MIN(ROW(Activity))+1),ROWS($B$3:B35)))&\" \"&CHAR(10)&(INDEX(Result,SMALL(IF(Target=$B$2,ROW(Result)-MIN(ROW(Result))+1),ROWS($B$3:B35))))&CHAR(10),\"\")","v":""},null,{"$f":"IFERROR(INDEX(Activity,SMALL(IF(Target=$D$2,ROW(Activity)-MIN(ROW(Activity))+1),ROWS($B$3:B35)))&CHAR(10),\"\")","v":""},null,{"$f":"IFERROR(INDEX(Activity,SMALL(IF(Target=$F$2,ROW(Activity)-MIN(ROW(Activity))+1),ROWS($B$3:B35)))&CHAR(10),\"\")","v":""},null,{"$f":"IFERROR(INDEX(Activity,SMALL(IF(Target=$H$2,ROW(Activity)-MIN(ROW(Activity))+1),ROWS($B$3:B35)))&CHAR(10),\"\")","v":""}]
[null,{"$f":"IFERROR(INDEX(Activity,SMALL(IF(Target=$B$2,ROW(Activity)-MIN(ROW(Activity))+1),ROWS($B$3:B36)))&\" \"&CHAR(10)&(INDEX(Result,SMALL(IF(Target=$B$2,ROW(Result)-MIN(ROW(Result))+1),ROWS($B$3:B36))))&CHAR(10),\"\")","v":""},null,{"$f":"IFERROR(INDEX(Activity,SMALL(IF(Target=$D$2,ROW(Activity)-MIN(ROW(Activity))+1),ROWS($B$3:B36)))&CHAR(10),\"\")","v":""},null,{"$f":"IFERROR(INDEX(Activity,SMALL(IF(Target=$F$2,ROW(Activity)-MIN(ROW(Activity))+1),ROWS($B$3:B36)))&CHAR(10),\"\")","v":""},null,{"$f":"IFERROR(INDEX(Activity,SMALL(IF(Target=$H$2,ROW(Activity)-MIN(ROW(Activity))+1),ROWS($B$3:B36)))&CHAR(10),\"\")","v":""}]
[null,{"$f":"IFERROR(INDEX(Activity,SMALL(IF(Target=$B$2,ROW(Activity)-MIN(ROW(Activity))+1),ROWS($B$3:B37)))&\" \"&CHAR(10)&(INDEX(Result,SMALL(IF(Target=$B$2,ROW(Result)-MIN(ROW(Result))+1),ROWS($B$3:B37))))&CHAR(10),\"\")","v":""},null,{"$f":"IFERROR(INDEX(Activity,SMALL(IF(Target=$D$2,ROW(Activity)-MIN(ROW(Activity))+1),ROWS($B$3:B37)))&CHAR(10),\"\")","v":""},null,{"$f":"IFERROR(INDEX(Activity,SMALL(IF(Target=$F$2,ROW(Activity)-MIN(ROW(Activity))+1),ROWS($B$3:B37)))&CHAR(10),\"\")","v":""},null,{"$f":"IFERROR(INDEX(Activity,SMALL(IF(Target=$H$2,ROW(Activity)-MIN(ROW(Activity))+1),ROWS($B$3:B37)))&CHAR(10),\"\")","v":""}]
[null,{"$f":"IFERROR(INDEX(Activity,SMALL(IF(Target=$B$2,ROW(Activity)-MIN(ROW(Activity))+1),ROWS($B$3:B38)))&\" \"&CHAR(10)&(INDEX(Result,SMALL(IF(Target=$B$2,ROW(Result)-MIN(ROW(Result))+1),ROWS($B$3:B38))))&CHAR(10),\"\")","v":""},null,{"$f":"IFERROR(INDEX(Activity,SMALL(IF(Target=$D$2,ROW(Activity)-MIN(ROW(Activity))+1),ROWS($B$3:B38)))&CHAR(10),\"\")","v":""},null,{"$f":"IFERROR(INDEX(Activity,SMALL(IF(Target=$F$2,ROW(Activity)-MIN(ROW(Activity))+1),ROWS($B$3:B38)))&CHAR(10),\"\")","v":""},null,{"$f":"IFERROR(INDEX(Activity,SMALL(IF(Target=$H$2,ROW(Activity)-MIN(ROW(Activity))+1),ROWS($B$3:B38)))&CHAR(10),\"\")","v":""}]
[null,{"$f":"IFERROR(INDEX(Activity,SMALL(IF(Target=$B$2,ROW(Activity)-MIN(ROW(Activity))+1),ROWS($B$3:B39)))&\" \"&CHAR(10)&(INDEX(Result,SMALL(IF(Target=$B$2,ROW(Result)-MIN(ROW(Result))+1),ROWS($B$3:B39))))&CHAR(10),\"\")","v":""},null,{"$f":"IFERROR(INDEX(Activity,SMALL(IF(Target=$D$2,ROW(Activity)-MIN(ROW(Activity))+1),ROWS($B$3:B39)))&CHAR(10),\"\")","v":""},null,{"$f":"IFERROR(INDEX(Activity,SMALL(IF(Target=$F$2,ROW(Activity)-MIN(ROW(Activity))+1),ROWS($B$3:B39)))&CHAR(10),\"\")","v":""},null,{"$f":"IFERROR(INDEX(Activity,SMALL(IF(Target=$H$2,ROW(Activity)-MIN(ROW(Activity))+1),ROWS($B$3:B39)))&CHAR(10),\"\")","v":""}]
[null,{"$f":"IFERROR(INDEX(Activity,SMALL(IF(Target=$B$2,ROW(Activity)-MIN(ROW(Activity))+1),ROWS($B$3:B40)))&\" \"&CHAR(10)&(INDEX(Result,SMALL(IF(Target=$B$2,ROW(Result)-MIN(ROW(Result))+1),ROWS($B$3:B40))))&CHAR(10),\"\")","v":""},null,{"$f":"IFERROR(INDEX(Activity,SMALL(IF(Target=$D$2,ROW(Activity)-MIN(ROW(Activity))+1),ROWS($B$3:B40)))&CHAR(10),\"\")","v":""},null,{"$f":"IFERROR(INDEX(Activity,SMALL(IF(Target=$F$2,ROW(Activity)-MIN(ROW(Activity))+1),ROWS($B$3:B40)))&CHAR(10),\"\")","v":""},null,{"$f":"IFERROR(INDEX(Activity,SMALL(IF(Target=$H$2,ROW(Activity)-MIN(ROW(Activity))+1),ROWS($B$3:B40)))&CHAR(10),\"\")","v":""}]
[null,{"$f":"IFERROR(INDEX(Activity,SMALL(IF(Target=$B$2,ROW(Activity)-MIN(ROW(Activity))+1),ROWS($B$3:B41)))&\" \"&CHAR(10)&(INDEX(Result,SMALL(IF(Target=$B$2,ROW(Result)-MIN(ROW(Result))+1),ROWS($B$3:B41))))&CHAR(10),\"\")","v":""},null,{"$f":"IFERROR(INDEX(Activity,SMALL(IF(Target=$D$2,ROW(Activity)-MIN(ROW(Activity))+1),ROWS($B$3:B41)))&CHAR(10),\"\")","v":""},null,{"$f":"IFERROR(INDEX(Activity,SMALL(IF(Target=$F$2,ROW(Activity)-MIN(ROW(Activity))+1),ROWS($B$3:B41)))&CHAR(10),\"\")","v":""},null,{"$f":"IFERROR(INDEX(Activity,SMALL(IF(Target=$H$2,ROW(Activity)-MIN(ROW(Activity))+1),ROWS($B$3:B41)))&CHAR(10),\"\")","v":""}]
[null,{"$f":"IFERROR(INDEX(Activity,SMALL(IF(Target=$B$2,ROW(Activity)-MIN(ROW(Activity))+1),ROWS($B$3:B42)))&\" \"&CHAR(10)&(INDEX(Result,SMALL(IF(Target=$B$2,ROW(Result)-MIN(ROW(Result))+1),ROWS($B$3:B42))))&CHAR(10),\"\")","v":""},null,{"$f":"IFERROR(INDEX(Activity,SMALL(IF(Target=$D$2,ROW(Activity)-MIN(ROW(Activity))+1),ROWS($B$3:B42)))&CHAR(10),\"\")","v":""},null,{"$f":"IFERROR(INDEX(Activity,SMALL(IF(Target=$F$2,ROW(Activity)-MIN(ROW(Activity))+1),ROWS($B$3:B42)))&CHAR(10),\"\")","v":""},null,{"$f":"IFERROR(INDEX(Activity,SMALL(IF(Target=$H$2,ROW(Activity)-MIN(ROW(Activity))+1),ROWS($B$3:B42)))&CHAR(10),\"\")","v":""}]
[null,{"$f":"IFERROR(INDEX(Activity,SMALL(IF(Target=$B$2,ROW(Activity)-MIN(ROW(Activity))+1),ROWS($B$3:B43)))&\" \"&CHAR(10)&(INDEX(Result,SMALL(IF(Target=$B$2,ROW(Result)-MIN(ROW(Result))+1),ROWS($B$3:B43))))&CHAR(10),\"\")","v":""},null,{"$f":"IFERROR(INDEX(Activity,SMALL(IF(Target=$D$2,ROW(Activity)-MIN(ROW(Activity))+1),ROWS($B$3:B43)))&CHAR(10),\"\")","v":""},null,{"$f":"IFERROR(INDEX(Activity,SMALL(IF(Target=$F$2,ROW(Activity)-MIN(ROW(Activity))+1),ROWS($B$3:B43)))&CHAR(10),\"\")","v":""},null,{"$f":"IFERROR(INDEX(Activity,SMALL(IF(Target=$H$2,ROW(Activity)-MIN(ROW(Activity))+1),ROWS($B$3:B43)))&CHAR(10),\"\")","v":""}]
[null,{"$f":"IFERROR(INDEX(Activity,SMALL(IF(Target=$B$2,ROW(Activity)-MIN(ROW(Activity))+1),ROWS($B$3:B44)))&\" \"&CHAR(10)&(INDEX(Result,SMALL(IF(Target=$B$2,ROW(Result)-MIN(ROW(Result))+1),ROWS($B$3:B44))))&CHAR(10),\"\")","v":""},null,{"$f":"IFERROR(INDEX(Activity,SMALL(IF(Target=$D$2,ROW(Activity)-MIN(ROW(Activity))+1),ROWS($B$3:B44)))&CHAR(10),\"\")","v":""},null,{"$f":"IFERROR(INDEX(Activity,SMALL(IF(Target=$F$2,ROW(Activity)-MIN(ROW(Activity))+1),ROWS($B$3:B44)))&CHAR(10),\"\")","v":""},null,{"$f":"IFERROR(INDEX(Activity,SMALL(IF(Target=$H$2,ROW(Activity)-MIN(ROW(Activity))+1),ROWS($B$3:B44)))&CHAR(10),\"\")","v":""}]
[null,{"$f":"IFERROR(INDEX(Activity,SMALL(IF(Target=$B$2,ROW(Activity)-MIN(ROW(Activity))+1),ROWS($B$3:B45)))&\" \"&CHAR(10)&(INDEX(Result,SMALL(IF(Target=$B$2,ROW(Result)-MIN(ROW(Result))+1),ROWS($B$3:B45))))&CHAR(10),\"\")","v":""},null,{"$f":"IFERROR(INDEX(Activity,SMALL(IF(Target=$D$2,ROW(Activity)-MIN(ROW(Activity))+1),ROWS($B$3:B45)))&CHAR(10),\"\")","v":""},null,{"$f":"IFERROR(INDEX(Activity,SMALL(IF(Target=$F$2,ROW(Activity)-MIN(ROW(Activity))+1),ROWS($B$3:B45)))&CHAR(10),\"\")","v":""},null,{"$f":"IFERROR(INDEX(Activity,SMALL(IF(Target=$H$2,ROW(Activity)-MIN(ROW(Activity))+1),ROWS($B$3:B45)))&CHAR(10),\"\")","v":""}]
[null,{"$f":"IFERROR(INDEX(Activity,SMALL(IF(Target=$B$2,ROW(Activity)-MIN(ROW(Activity))+1),ROWS($B$3:B46)))&\" \"&CHAR(10)&(INDEX(Result,SMALL(IF(Target=$B$2,ROW(Result)-MIN(ROW(Result))+1),ROWS($B$3:B46))))&CHAR(10),\"\")","v":""},null,{"$f":"IFERROR(INDEX(Activity,SMALL(IF(Target=$D$2,ROW(Activity)-MIN(ROW(Activity))+1),ROWS($B$3:B46)))&CHAR(10),\"\")","v":""},null,{"$f":"IFERROR(INDEX(Activity,SMALL(IF(Target=$F$2,ROW(Activity)-MIN(ROW(Activity))+1),ROWS($B$3:B46)))&CHAR(10),\"\")","v":""},null,{"$f":"IFERROR(INDEX(Activity,SMALL(IF(Target=$H$2,ROW(Activity)-MIN(ROW(Activity))+1),ROWS($B$3:B46)))&CHAR(10),\"\")","v":""}]
[null,{"$f":"IFERROR(INDEX(Activity,SMALL(IF(Target=$B$2,ROW(Activity)-MIN(ROW(Activity))+1),ROWS($B$3:B47)))&\" \"&CHAR(10)&(INDEX(Result,SMALL(IF(Target=$B$2,ROW(Result)-MIN(ROW(Result))+1),ROWS($B$3:B47))))&CHAR(10),\"\")","v":""},null,{"$f":"IFERROR(INDEX(Activity,SMALL(IF(Target=$D$2,ROW(Activity)-MIN(ROW(Activity))+1),ROWS($B$3:B47)))&CHAR(10),\"\")","v":""},null,{"$f":"IFERROR(INDEX(Activity,SMALL(IF(Target=$F$2,ROW(Activity)-MIN(ROW(Activity))+1),ROWS($B$3:B47)))&CHAR(10),\"\")","v":""},null,{"$f":"IFERROR(INDEX(Activity,SMALL(IF(Target=$H$2,ROW(Activity)-MIN(ROW(Activity))+1),ROWS($B$3:B47)))&CHAR(10),\"\")","v":""}]
[null,{"$f":"IFERROR(INDEX(Activity,SMALL(IF(Target=$B$2,ROW(Activity)-MIN(ROW(Activity))+1),ROWS($B$3:B48)))&\" \"&CHAR(10)&(INDEX(Result,SMALL(IF(Target=$B$2,ROW(Result)-MIN(ROW(Result))+1),ROWS($B$3:B48))))&CHAR(10),\"\")","v":""},null,{"$f":"IFERROR(INDEX(Activity,SMALL(IF(Target=$D$2,ROW(Activity)-MIN(ROW(Activity))+1),ROWS($B$3:B48)))&CHAR(10),\"\")","v":""},null,{"$f":"IFERROR(INDEX(Activity,SMALL(IF(Target=$F$2,ROW(Activity)-MIN(ROW(Activity))+1),ROWS($B$3:B48)))&CHAR(10),\"\")","v":""},null,{"$f":"IFERROR(INDEX(Activity,SMALL(IF(Target=$H$2,ROW(Activity)-MIN(ROW(Activity))+1),ROWS($B$3:B48)))&CHAR(10),\"\")","v":""}]
[null,{"$f":"IFERROR(INDEX(Activity,SMALL(IF(Target=$B$2,ROW(Activity)-MIN(ROW(Activity))+1),ROWS($B$3:B49)))&\" \"&CHAR(10)&(INDEX(Result,SMALL(IF(Target=$B$2,ROW(Result)-MIN(ROW(Result))+1),ROWS($B$3:B49))))&CHAR(10),\"\")","v":""},null,{"$f":"IFERROR(INDEX(Activity,SMALL(IF(Target=$D$2,ROW(Activity)-MIN(ROW(Activity))+1),ROWS($B$3:B49)))&CHAR(10),\"\")","v":""},null,{"$f":"IFERROR(INDEX(Activity,SMALL(IF(Target=$F$2,ROW(Activity)-MIN(ROW(Activity))+1),ROWS($B$3:B49)))&CHAR(10),\"\")","v":""},null,{"$f":"IFERROR(INDEX(Activity,SMALL(IF(Target=$H$2,ROW(Activity)-MIN(ROW(Activity))+1),ROWS($B$3:B49)))&CHAR(10),\"\")","v":""}]
[null,{"$f":"IFERROR(INDEX(Activity,SMALL(IF(Target=$B$2,ROW(Activity)-MIN(ROW(Activity))+1),ROWS($B$3:B50)))&\" \"&CHAR(10)&(INDEX(Result,SMALL(IF(Target=$B$2,ROW(Result)-MIN(ROW(Result))+1),ROWS($B$3:B50))))&CHAR(10),\"\")","v":""},null,{"$f":"IFERROR(INDEX(Activity,SMALL(IF(Target=$D$2,ROW(Activity)-MIN(ROW(Activity))+1),ROWS($B$3:B50)))&CHAR(10),\"\")","v":""},null,{"$f":"IFERROR(INDEX(Activity,SMALL(IF(Target=$F$2,ROW(Activity)-MIN(ROW(Activity))+1),ROWS($B$3:B50)))&CHAR(10),\"\")","v":""},null,{"$f":"IFERROR(INDEX(Activity,SMALL(IF(Target=$H$2,ROW(Activity)-MIN(ROW(Activity))+1),ROWS($B$3:B50)))&CHAR(10),\"\")","v":""}]
[null,{"$f":"IFERROR(INDEX(Activity,SMALL(IF(Target=$B$2,ROW(Activity)-MIN(ROW(Activity))+1),ROWS($B$3:B51)))&\" \"&CHAR(10)&(INDEX(Result,SMALL(IF(Target=$B$2,ROW(Result)-MIN(ROW(Result))+1),ROWS($B$3:B51))))&CHAR(10),\"\")","v":""},null,{"$f":"IFERROR(INDEX(Activity,SMALL(IF(Target=$D$2,ROW(Activity)-MIN(ROW(Activity))+1),ROWS($B$3:B51)))&CHAR(10),\"\")","v":""},null,{"$f":"IFERROR(INDEX(Activity,SMALL(IF(Target=$F$2,ROW(Activity)-MIN(ROW(Activity))+1),ROWS($B$3:B51)))&CHAR(10),\"\")","v":""},null,{"$f":"IFERROR(INDEX(Activity,SMALL(IF(Target=$H$2,ROW(Activity)-MIN(ROW(Activity))+1),ROWS($B$3:B51)))&CHAR(10),\"\")","v":""}]
[null,{"$f":"IFERROR(INDEX(Activity,SMALL(IF(Target=$B$2,ROW(Activity)-MIN(ROW(Activity))+1),ROWS($B$3:B52)))&\" \"&CHAR(10)&(INDEX(Result,SMALL(IF(Target=$B$2,ROW(Result)-MIN(ROW(Result))+1),ROWS($B$3:B52))))&CHAR(10),\"\")","v":""},null,{"$f":"IFERROR(INDEX(Activity,SMALL(IF(Target=$D$2,ROW(Activity)-MIN(ROW(Activity))+1),ROWS($B$3:B52)))&CHAR(10),\"\")","v":""},null,{"$f":"IFERROR(INDEX(Activity,SMALL(IF(Target=$F$2,ROW(Activity)-MIN(ROW(Activity))+1),ROWS($B$3:B52)))&CHAR(10),\"\")","v":""},null,{"$f":"IFERROR(INDEX(Activity,SMALL(IF(Target=$H$2,ROW(Activity)-MIN(ROW(Activity))+1),ROWS($B$3:B52)))&CHAR(10),\"\")","v":""}]
[null,{"$f":"IFERROR(INDEX(Activity,SMALL(IF(Target=$B$2,ROW(Activity)-MIN(ROW(Activity))+1),ROWS($B$3:B53)))&\" \"&CHAR(10)&(INDEX(Result,SMALL(IF(Target=$B$2,ROW(Result)-MIN(ROW(Result))+1),ROWS($B$3:B53))))&CHAR(10),\"\")","v":""},null,{"$f":"IFERROR(INDEX(Activity,SMALL(IF(Target=$D$2,ROW(Activity)-MIN(ROW(Activity))+1),ROWS($B$3:B53)))&CHAR(10),\"\")","v":""},null,{"$f":"IFERROR(INDEX(Activity,SMALL(IF(Target=$F$2,ROW(Activity)-MIN(ROW(Activity))+1),ROWS($B$3:B53)))&CHAR(10),\"\")","v":""},null,{"$f":"IFERROR(INDEX(Activity,SMALL(IF(Target=$H$2,ROW(Activity)-MIN(ROW(Activity))+1),ROWS($B$3:B53)))&CHAR(10),\"\")","v":""}]
[null,{"$f":"IFERROR(INDEX(Activity,SMALL(IF(Target=$B$2,ROW(Activity)-MIN(ROW(Activity))+1),ROWS($B$3:B54)))&\" \"&CHAR(10)&(INDEX(Result,SMALL(IF(Target=$B$2,ROW(Result)-MIN(ROW(Result))+1),ROWS($B$3:B54))))&CHAR(10),\"\")","v":""},null,{"$f":"IFERROR(INDEX(Activity,SMALL(IF(Target=$D$2,ROW(Activity)-MIN(ROW(Activity))+1),ROWS($B$3:B54)))&CHAR(10),\"\")","v":""},null,{"$f":"IFERROR(INDEX(Activity,SMALL(IF(Target=$F$2,ROW(Activity)-MIN(ROW(Activity))+1),ROWS($B$3:B54)))&CHAR(10),\"\")","v":""},null,{"$f":"IFERROR(INDEX(Activity,SMALL(IF(Target=$H$2,ROW(Activity)-MIN(ROW(Activity))+1),ROWS($B$3:B54)))&CHAR(10),\"\")","v":""}]
[null,{"$f":"IFERROR(INDEX(Activity,SMALL(IF(Target=$B$2,ROW(Activity)-MIN(ROW(Activity))+1),ROWS($B$3:B55)))&\" \"&CHAR(10)&(INDEX(Result,SMALL(IF(Target=$B$2,ROW(Result)-MIN(ROW(Result))+1),ROWS($B$3:B55))))&CHAR(10),\"\")","v":""},null,{"$f":"IFERROR(INDEX(Activity,SMALL(IF(Target=$D$2,ROW(Activity)-MIN(ROW(Activity))+1),ROWS($B$3:B55)))&CHAR(10),\"\")","v":""},null,{"$f":"IFERROR(INDEX(Activity,SMALL(IF(Target=$F$2,ROW(Activity)-MIN(ROW(Activity))+1),ROWS($B$3:B55)))&CHAR(10),\"\")","v":""},null,{"$f":"IFERROR(INDEX(Activity,SMALL(IF(Target=$H$2,ROW(Activity)-MIN(ROW(Activity))+1),ROWS($B$3:B55)))&CHAR(10),\"\")","v":""}]
[null,{"$f":"IFERROR(INDEX(Activity,SMALL(IF(Target=$B$2,ROW(Activity)-MIN(ROW(Activity))+1),ROWS($B$3:B56)))&\" \"&CHAR(10)&(INDEX(Result,SMALL(IF(Target=$B$2,ROW(Result)-MIN(ROW(Result))+1),ROWS($B$3:B56))))&CHAR(10),\"\")","v":""},null,{"$f":"IFERROR(INDEX(Activity,SMALL(IF(Target=$D$2,ROW(Activity)-MIN(ROW(Activity))+1),ROWS($B$3:B56)))&CHAR(10),\"\")","v":""},null,{"$f":"IFERROR(INDEX(Activity,SMALL(IF(Target=$F$2,ROW(Activity)-MIN(ROW(Activity))+1),ROWS($B$3:B56)))&CHAR(10),\"\")","v":""},null,{"$f":"IFERROR(INDEX(Activity,SMALL(IF(Target=$H$2,ROW(Activity)-MIN(ROW(Activity))+1),ROWS($B$3:B56)))&CHAR(10),\"\")","v":""}]
[null,{"$f":"IFERROR(INDEX(Activity,SMALL(IF(Target=$B$2,ROW(Activity)-MIN(ROW(Activity))+1),ROWS($B$3:B57)))&\" \"&CHAR(10)&(INDEX(Result,SMALL(IF(Target=$B$2,ROW(Result)-MIN(ROW(Result))+1),ROWS($B$3:B57))))&CHAR(10),\"\")","v":""},null,{"$f":"IFERROR(INDEX(Activity,SMALL(IF(Target=$D$2,ROW(Activity)-MIN(ROW(Activity))+1),ROWS($B$3:B57)))&CHAR(10),\"\")","v":""},null,{"$f":"IFERROR(INDEX(Activity,SMALL(IF(Target=$F$2,ROW(Activity)-MIN(ROW(Activity))+1),ROWS($B$3:B57)))&CHAR(10),\"\")","v":""},null,{"$f":"IFERROR(INDEX(Activity,SMALL(IF(Target=$H$2,ROW(Activity)-MIN(ROW(Activity))+1),ROWS($B$3:B57)))&CHAR(10),\"\")","v":""}]
[null,{"$f":"IFERROR(INDEX(Activity,SMALL(IF(Target=$B$2,ROW(Activity)-MIN(ROW(Activity))+1),ROWS($B$3:B58)))&\" \"&CHAR(10)&(INDEX(Result,SMALL(IF(Target=$B$2,ROW(Result)-MIN(ROW(Result))+1),ROWS($B$3:B58))))&CHAR(10),\"\")","v":""},null,{"$f":"IFERROR(INDEX(Activity,SMALL(IF(Target=$D$2,ROW(Activity)-MIN(ROW(Activity))+1),ROWS($B$3:B58)))&CHAR(10),\"\")","v":""},null,{"$f":"IFERROR(INDEX(Activity,SMALL(IF(Target=$F$2,ROW(Activity)-MIN(ROW(Activity))+1),ROWS($B$3:B58)))&CHAR(10),\"\")","v":""},null,{"$f":"IFERROR(INDEX(Activity,SMALL(IF(Target=$H$2,ROW(Activity)-MIN(ROW(Activity))+1),ROWS($B$3:B58)))&CHAR(10),\"\")","v":""}]
[null,{"$f":"IFERROR(INDEX(Activity,SMALL(IF(Target=$B$2,ROW(Activity)-MIN(ROW(Activity))+1),ROWS($B$3:B59)))&\" \"&CHAR(10)&(INDEX(Result,SMALL(IF(Target=$B$2,ROW(Result)-MIN(ROW(Result))+1),ROWS($B$3:B59))))&CHAR(10),\"\")","v":""},null,{"$f":"IFERROR(INDEX(Activity,SMALL(IF(Target=$D$2,ROW(Activity)-MIN(ROW(Activity))+1),ROWS($B$3:B59)))&CHAR(10),\"\")","v":""},null,{"$f":"IFERROR(INDEX(Activity,SMALL(IF(Target=$F$2,ROW(Activity)-MIN(ROW(Activity))+1),ROWS($B$3:B59)))&CHAR(10),\"\")","v":""},null,{"$f":"IFERROR(INDEX(Activity,SMALL(IF(Target=$H$2,ROW(Activity)-MIN(ROW(Activity))+1),ROWS($B$3:B59)))&CHAR(10),\"\")","v":""}]
[null,{"$f":"IFERROR(INDEX(Activity,SMALL(IF(Target=$B$2,ROW(Activity)-MIN(ROW(Activity))+1),ROWS($B$3:B60)))&\" \"&CHAR(10)&(INDEX(Result,SMALL(IF(Target=$B$2,ROW(Result)-MIN(ROW(Result))+1),ROWS($B$3:B60))))&CHAR(10),\"\")","v":""},null,{"$f":"IFERROR(INDEX(Activity,SMALL(IF(Target=$D$2,ROW(Activity)-MIN(ROW(Activity))+1),ROWS($B$3:B60)))&CHAR(10),\"\")","v":""},null,{"$f":"IFERROR(INDEX(Activity,SMALL(IF(Target=$F$2,ROW(Activity)-MIN(ROW(Activity))+1),ROWS($B$3:B60)))&CHAR(10),\"\")","v":""},null,{"$f":"IFERROR(INDEX(Activity,SMALL(IF(Target=$H$2,ROW(Activity)-MIN(ROW(Activity))+1),ROWS($B$3:B60)))&CHAR(10),\"\")","v":""}]
[null,{"$f":"IFERROR(INDEX(Activity,SMALL(IF(Target=$B$2,ROW(Activity)-MIN(ROW(Activity))+1),ROWS($B$3:B61)))&\" \"&CHAR(10)&(INDEX(Result,SMALL(IF(Target=$B$2,ROW(Result)-MIN(ROW(Result))+1),ROWS($B$3:B61))))&CHAR(10),\"\")","v":""},null,{"$f":"IFERROR(INDEX(Activity,SMALL(IF(Target=$D$2,ROW(Activity)-MIN(ROW(Activity))+1),ROWS($B$3:B61)))&CHAR(10),\"\")","v":""},null,{"$f":"IFERROR(INDEX(Activity,SMALL(IF(Target=$F$2,ROW(Activity)-MIN(ROW(Activity))+1),ROWS($B$3:B61)))&CHAR(10),\"\")","v":""},null,{"$f":"IFERROR(INDEX(Activity,SMALL(IF(Target=$H$2,ROW(Activity)-MIN(ROW(Activity))+1),ROWS($B$3:B61)))&CHAR(10),\"\")","v":""}]
[null,{"$f":"IFERROR(INDEX(Activity,SMALL(IF(Target=$B$2,ROW(Activity)-MIN(ROW(Activity))+1),ROWS($B$3:B62)))&\" \"&CHAR(10)&(INDEX(Result,SMALL(IF(Target=$B$2,ROW(Result)-MIN(ROW(Result))+1),ROWS($B$3:B62))))&CHAR(10),\"\")","v":""},null,{"$f":"IFERROR(INDEX(Activity,SMALL(IF(Target=$D$2,ROW(Activity)-MIN(ROW(Activity))+1),ROWS($B$3:B62)))&CHAR(10),\"\")","v":""},null,{"$f":"IFERROR(INDEX(Activity,SMALL(IF(Target=$F$2,ROW(Activity)-MIN(ROW(Activity))+1),ROWS($B$3:B62)))&CHAR(10),\"\")","v":""},null,{"$f":"IFERROR(INDEX(Activity,SMALL(IF(Target=$H$2,ROW(Activity)-MIN(ROW(Activity))+1),ROWS($B$3:B62)))&CHAR(10),\"\")","v":""}]
[null,{"$f":"IFERROR(INDEX(Activity,SMALL(IF(Target=$B$2,ROW(Activity)-MIN(ROW(Activity))+1),ROWS($B$3:B63)))&\" \"&CHAR(10)&(INDEX(Result,SMALL(IF(Target=$B$2,ROW(Result)-MIN(ROW(Result))+1),ROWS($B$3:B63))))&CHAR(10),\"\")","v":""},null,{"$f":"IFERROR(INDEX(Activity,SMALL(IF(Target=$D$2,ROW(Activity)-MIN(ROW(Activity))+1),ROWS($B$3:B63)))&CHAR(10),\"\")","v":""},null,{"$f":"IFERROR(INDEX(Activity,SMALL(IF(Target=$F$2,ROW(Activity)-MIN(ROW(Activity))+1),ROWS($B$3:B63)))&CHAR(10),\"\")","v":""},null,{"$f":"IFERROR(INDEX(Activity,SMALL(IF(Target=$H$2,ROW(Activity)-MIN(ROW(Activity))+1),ROWS($B$3:B63)))&CHAR(10),\"\")","v":""}]
[null,{"$f":"IFERROR(INDEX(Activity,SMALL(IF(Target=$B$2,ROW(Activity)-MIN(ROW(Activity))+1),ROWS($B$3:B64)))&\" \"&CHAR(10)&(INDEX(Result,SMALL(IF(Target=$B$2,ROW(Result)-MIN(ROW(Result))+1),ROWS($B$3:B64))))&CHAR(10),\"\")","v":""},null,{"$f":"IFERROR(INDEX(Activity,SMALL(IF(Target=$D$2,ROW(Activity)-MIN(ROW(Activity))+1),ROWS($B$3:B64)))&CHAR(10),\"\")","v":""},null,{"$f":"IFERROR(INDEX(Activity,SMALL(IF(Target=$F$2,ROW(Activity)-MIN(ROW(Activity))+1),ROWS($B$3:B64)))&CHAR(10),\"\")","v":""},null,{"$f":"IFERROR(INDEX(Activity,SMALL(IF(Target=$H$2,ROW(Activity)-MIN(ROW(Activity))+1),ROWS($B$3:B64)))&CHAR(10),\"\")","v":""}]
[null,{"$f":"IFERROR(INDEX(Activity,SMALL(IF(Target=$B$2,ROW(Activity)-MIN(ROW(Activity))+1),ROWS($B$3:B65)))&\" \"&CHAR(10)&(INDEX(Result,SMALL(IF(Target=$B$2,ROW(Result)-MIN(ROW(Result))+1),ROWS($B$3:B65))))&CHAR(10),\"\")","v":""},null,{"$f":"IFERROR(INDEX(Activity,SMALL(IF(Target=$D$2,ROW(Activity)-MIN(ROW(Activity))+1),ROWS($B$3:B65)))&CHAR(10),\"\")","v":""},null,{"$f":"IFERROR(INDEX(Activity,SMALL(IF(Target=$F$2,ROW(Activity)-MIN(ROW(Activity))+1),ROWS($B$3:B65)))&CHAR(10),\"\")","v":""},null,{"$f":"IFERROR(INDEX(Activity,SMALL(IF(Target=$H$2,ROW(Activity)-MIN(ROW(Activity))+1),ROWS($B$3:B65)))&CHAR(10),\"\")","v":""}]
[null,{"$f":"IFERROR(INDEX(Activity,SMALL(IF(Target=$B$2,ROW(Activity)-MIN(ROW(Activity))+1),ROWS($B$3:B66)))&\" \"&CHAR(10)&(INDEX(Result,SMALL(IF(Target=$B$2,ROW(Result)-MIN(ROW(Result))+1),ROWS($B$3:B66))))&CHAR(10),\"\")","v":""},null,{"$f":"IFERROR(INDEX(Activity,SMALL(IF(Target=$D$2,ROW(Activity)-MIN(ROW(Activity))+1),ROWS($B$3:B66)))&CHAR(10),\"\")","v":""},null,{"$f":"IFERROR(INDEX(Activity,SMALL(IF(Target=$F$2,ROW(Activity)-MIN(ROW(Activity))+1),ROWS($B$3:B66)))&CHAR(10),\"\")","v":""},null,{"$f":"IFERROR(INDEX(Activity,SMALL(IF(Target=$H$2,ROW(Activity)-MIN(ROW(Activity))+1),ROWS($B$3:B66)))&CHAR(10),\"\")","v":""}]
[null,{"$f":"IFERROR(INDEX(Activity,SMALL(IF(Target=$B$2,ROW(Activity)-MIN(ROW(Activity))+1),ROWS($B$3:B67)))&\" \"&CHAR(10)&(INDEX(Result,SMALL(IF(Target=$B$2,ROW(Result)-MIN(ROW(Result))+1),ROWS($B$3:B67))))&CHAR(10),\"\")","v":""},null,{"$f":"IFERROR(INDEX(Activity,SMALL(IF(Target=$D$2,ROW(Activity)-MIN(ROW(Activity))+1),ROWS($B$3:B67)))&CHAR(10),\"\")","v":""},null,{"$f":"IFERROR(INDEX(Activity,SMALL(IF(Target=$F$2,ROW(Activity)-MIN(ROW(Activity))+1),ROWS($B$3:B67)))&CHAR(10),\"\")","v":""},null,{"$f":"IFERROR(INDEX(Activity,SMALL(IF(Target=$H$2,ROW(Activity)-MIN(ROW(Activity))+1),ROWS($B$3:B67)))&CHAR(10),\"\")","v":""}]
[null,{"$f":"IFERROR(INDEX(Activity,SMALL(IF(Target=$B$2,ROW(Activity)-MIN(ROW(Activity))+1),ROWS($B$3:B68)))&\" \"&CHAR(10)&(INDEX(Result,SMALL(IF(Target=$B$2,ROW(Result)-MIN(ROW(Result))+1),ROWS($B$3:B68))))&CHAR(10),\"\")","v":""},null,{"$f":"IFERROR(INDEX(Activity,SMALL(IF(Target=$D$2,ROW(Activity)-MIN(ROW(Activity))+1),ROWS($B$3:B68)))&CHAR(10),\"\")","v":""},null,{"$f":"IFERROR(INDEX(Activity,SMALL(IF(Target=$F$2,ROW(Activity)-MIN(ROW(Activity))+1),ROWS($B$3:B68)))&CHAR(10),\"\")","v":""},null,{"$f":"IFERROR(INDEX(Activity,SMALL(IF(Target=$H$2,ROW(Activity)-MIN(ROW(Activity))+1),ROWS($B$3:B68)))&CHAR(10),\"\")","v":""}]
[null,{"$f":"IFERROR(INDEX(Activity,SMALL(IF(Target=$B$2,ROW(Activity)-MIN(ROW(Activity))+1),ROWS($B$3:B69)))&\" \"&CHAR(10)&(INDEX(Result,SMALL(IF(Target=$B$2,ROW(Result)-MIN(ROW(Result))+1),ROWS($B$3:B69))))&CHAR(10),\"\")","v":""},null,{"$f":"IFERROR(INDEX(Activity,SMALL(IF(Target=$D$2,ROW(Activity)-MIN(ROW(Activity))+1),ROWS($B$3:B69)))&CHAR(10),\"\")","v":""},null,{"$f":"IFERROR(INDEX(Activity,SMALL(IF(Target=$F$2,ROW(Activity)-MIN(ROW(Activity))+1),ROWS($B$3:B69)))&CHAR(10),\"\")","v":""},null,{"$f":"IFERROR(INDEX(Activity,SMALL(IF(Target=$H$2,ROW(Activity)-MIN(ROW(Activity))+1),ROWS($B$3:B69)))&CHAR(10),\"\")","v":""}]
[null,{"$f":"IFERROR(INDEX(Activity,SMALL(IF(Target=$B$2,ROW(Activity)-MIN(ROW(Activity))+1),ROWS($B$3:B70)))&\" \"&CHAR(10)&(INDEX(Result,SMALL(IF(Target=$B$2,ROW(Result)-MIN(ROW(Result))+1),ROWS($B$3:B70))))&CHAR(10),\"\")","v":""},null,{"$f":"IFERROR(INDEX(Activity,SMALL(IF(Target=$D$2,ROW(Activity)-MIN(ROW(Activity))+1),ROWS($B$3:B70)))&CHAR(10),\"\")","v":""},null,{"$f":"IFERROR(INDEX(Activity,SMALL(IF(Target=$F$2,ROW(Activity)-MIN(ROW(Activity))+1),ROWS($B$3:B70)))&CHAR(10),\"\")","v":""},null,{"$f":"IFERROR(INDEX(Activity,SMALL(IF(Target=$H$2,ROW(Activity)-MIN(ROW(Activity))+1),ROWS($B$3:B70)))&CHAR(10),\"\")","v":""}]
[null,{"$f":"IFERROR(INDEX(Activity,SMALL(IF(Target=$B$2,ROW(Activity)-MIN(ROW(Activity))+1),ROWS($B$3:B71)))&\" \"&CHAR(10)&(INDEX(Result,SMALL(IF(Target=$B$2,ROW(Result)-MIN(ROW(Result))+1),ROWS($B$3:B71))))&CHAR(10),\"\")","v":""},null,{"$f":"IFERROR(INDEX(Activity,SMALL(IF(Target=$D$2,ROW(Activity)-MIN(ROW(Activity))+1),ROWS($B$3:B71)))&CHAR(10),\"\")","v":""},null,{"$f":"IFERROR(INDEX(Activity,SMALL(IF(Target=$F$2,ROW(Activity)-MIN(ROW(Activity))+1),ROWS($B$3:B71)))&CHAR(10),\"\")","v":""},null,{"$f":"IFERROR(INDEX(Activity,SMALL(IF(Target=$H$2,ROW(Activity)-MIN(ROW(Activity))+1),ROWS($B$3:B71)))&CHAR(10),\"\")","v":""}]
[null,{"$f":"IFERROR(INDEX(Activity,SMALL(IF(Target=$B$2,ROW(Activity)-MIN(ROW(Activity))+1),ROWS($B$3:B72)))&\" \"&CHAR(10)&(INDEX(Result,SMALL(IF(Target=$B$2,ROW(Result)-MIN(ROW(Result))+1),ROWS($B$3:B72))))&CHAR(10),\"\")","v":""},null,{"$f":"IFERROR(INDEX(Activity,SMALL(IF(Target=$D$2,ROW(Activity)-MIN(ROW(Activity))+1),ROWS($B$3:B72)))&CHAR(10),\"\")","v":""},null,{"$f":"IFERROR(INDEX(Activity,SMALL(IF(Target=$F$2,ROW(Activity)-MIN(ROW(Activity))+1),ROWS($B$3:B72)))&CHAR(10),\"\")","v":""},null,{"$f":"IFERROR(INDEX(Activity,SMALL(IF(Target=$H$2,ROW(Activity)-MIN(ROW(Activity))+1),ROWS($B$3:B72)))&CHAR(10),\"\")","v":""}]
[null,{"$f":"IFERROR(INDEX(Activity,SMALL(IF(Target=$B$2,ROW(Activity)-MIN(ROW(Activity))+1),ROWS($B$3:B73)))&\" \"&CHAR(10)&(INDEX(Result,SMALL(IF(Target=$B$2,ROW(Result)-MIN(ROW(Result))+1),ROWS($B$3:B73))))&CHAR(10),\"\")","v":""},null,{"$f":"IFERROR(INDEX(Activity,SMALL(IF(Target=$D$2,ROW(Activity)-MIN(ROW(Activity))+1),ROWS($B$3:B73)))&CHAR(10),\"\")","v":""},null,{"$f":"IFERROR(INDEX(Activity,SMALL(IF(Target=$F$2,ROW(Activity)-MIN(ROW(Activity))+1),ROWS($B$3:B73)))&CHAR(10),\"\")","v":""},null,{"$f":"IFERROR(INDEX(Activity,SMALL(IF(Target=$H$2,ROW(Activity)-MIN(ROW(Activity))+1),ROWS($B$3:B73)))&CHAR(10),\"\")","v":""}]
[null,{"$f":"IFERROR(INDEX(Activity,SMALL(IF(Target=$B$2,ROW(Activity)-MIN(ROW(Activity))+1),ROWS($B$3:B74)))&\" \"&CHAR(10)&(INDEX(Result,SMALL(IF(Target=$B$2,ROW(Result)-MIN(ROW(Result))+1),ROWS($B$3:B74))))&CHAR(10),\"\")","v":""},null,{"$f":"IFERROR(INDEX(Activity,SMALL(IF(Target=$D$2,ROW(Activity)-MIN(ROW(Activity))+1),ROWS($B$3:B74)))&CHAR(10),\"\")","v":""},null,{"$f":"IFERROR(INDEX(Activity,SMALL(IF(Target=$F$2,ROW(Activity)-MIN(ROW(Activity))+1),ROWS($B$3:B74)))&CHAR(10),\"\")","v":""},null,{"$f":"IFERROR(INDEX(Activity,SMALL(IF(Target=$H$2,ROW(Activity)-MIN(ROW(Activity))+1),ROWS($B$3:B74)))&CHAR(10),\"\")","v":""}]
[null,{"$f":"IFERROR(INDEX(Activity,SMALL(IF(Target=$B$2,ROW(Activity)-MIN(ROW(Activity))+1),ROWS($B$3:B75)))&\" \"&CHAR(10)&(INDEX(Result,SMALL(IF(Target=$B$2,ROW(Result)-MIN(ROW(Result))+1),ROWS($B$3:B75))))&CHAR(10),\"\")","v":""},null,{"$f":"IFERROR(INDEX(Activity,SMALL(IF(Target=$D$2,ROW(Activity)-MIN(ROW(Activity))+1),ROWS($B$3:B75)))&CHAR(10),\"\")","v":""},null,{"$f":"IFERROR(INDEX(Activity,SMALL(IF(Target=$F$2,ROW(Activity)-MIN(ROW(Activity))+1),ROWS($B$3:B75)))&CHAR(10),\"\")","v":""},null,{"$f":"IFERROR(INDEX(Activity,SMALL(IF(Target=$H$2,ROW(Activity)-MIN(ROW(Activity))+1),ROWS($B$3:B75)))&CHAR(10),\"\")","v":""}]
[null,{"$f":"IFERROR(INDEX(Activity,SMALL(IF(Target=$B$2,ROW(Activity)-MIN(ROW(Activity))+1),ROWS($B$3:B76)))&\" \"&CHAR(10)&(INDEX(Result,SMALL(IF(Target=$B$2,ROW(Result)-MIN(ROW(Result))+1),ROWS($B$3:B76))))&CHAR(10),\"\")","v":""},null,{"$f":"IFERROR(INDEX(Activity,SMALL(IF(Target=$D$2,ROW(Activity)-MIN(ROW(Activity))+1),ROWS($B$3:B76)))&CHAR(10),\"\")","v":""},null,{"$f":"IFERROR(INDEX(Activity,SMALL(IF(Target=$F$2,ROW(Activity)-MIN(ROW(Activity))+1),ROWS($B$3:B76)))&CHAR(10),\"\")","v":""},null,{"$f":"IFERROR(INDEX(Activity,SMALL(IF(Target=$H$2,ROW(Activity)-MIN(ROW(Activity))+1),ROWS($B$3:B76)))&CHAR(10),\"\")","v":""}]
[null,{"$f":"IFERROR(INDEX(Activity,SMALL(IF(Target=$B$2,ROW(Activity)-MIN(ROW(Activity))+1),ROWS($B$3:B77)))&\" \"&CHAR(10)&(INDEX(Result,SMALL(IF(Target=$B$2,ROW(Result)-MIN(ROW(Result))+1),ROWS($B$3:B77))))&CHAR(10),\"\")","v":""},null,{"$f":"IFERROR(INDEX(Activity,SMALL(IF(Target=$D$2,ROW(Activity)-MIN(ROW(Activity))+1),ROWS($B$3:B77)))&CHAR(10),\"\")","v":""},null,{"$f":"IFERROR(INDEX(Activity,SMALL(IF(Target=$F$2,ROW(Activity)-MIN(ROW(Activity))+1),ROWS($B$3:B77)))&CHAR(10),\"\")","v":""},null,{"$f":"IFERROR(INDEX(Activity,SMALL(IF(Target=$H$2,ROW(Activity)-MIN(ROW(Activity))+1),ROWS($B$3:B77)))&CHAR(10),\"\")","v":""}]
[null,{"$f":"IFERROR(INDEX(Activity,SMALL(IF(Target=$B$2,ROW(Activity)-MIN(ROW(Activity))+1),ROWS($B$3:B78)))&\" \"&CHAR(10)&(INDEX(Result,SMALL(IF(Target=$B$2,ROW(Result)-MIN(ROW(Result))+1),ROWS($B$3:B78))))&CHAR(10),\"\")","v":""},null,{"$f":"IFERROR(INDEX(Activity,SMALL(IF(Target=$D$2,ROW(Activity)-MIN(ROW(Activity))+1),ROWS($B$3:B78)))&CHAR(10),\"\")","v":""},null,{"$f":"IFERROR(INDEX(Activity,SMALL(IF(Target=$F$2,ROW(Activity)-MIN(ROW(Activity))+1),ROWS($B$3:B78)))&CHAR(10),\"\")","v":""},null,{"$f":"IFERROR(INDEX(Activity,SMALL(IF(Target=$H$2,ROW(Activity)-MIN(ROW(Activity))+1),ROWS($B$3:B78)))&CHAR(10),\"\")","v":""}]
[null,{"$f":"IFERROR(INDEX(Activity,SMALL(IF(Target=$B$2,ROW(Activity)-MIN(ROW(Activity))+1),ROWS($B$3:B79)))&\" \"&CHAR(10)&(INDEX(Result,SMALL(IF(Target=$B$2,ROW(Result)-MIN(ROW(Result))+1),ROWS($B$3:B79))))&CHAR(10),\"\")","v":""},null,{"$f":"IFERROR(INDEX(Activity,SMALL(IF(Target=$D$2,ROW(Activity)-MIN(ROW(Activity))+1),ROWS($B$3:B79)))&CHAR(10),\"\")","v":""},null,{"$f":"IFERROR(INDEX(Activity,SMALL(IF(Target=$F$2,ROW(Activity)-MIN(ROW(Activity))+1),ROWS($B$3:B79)))&CHAR(10),\"\")","v":""},null,{"$f":"IFERROR(INDEX(Activity,SMALL(IF(Target=$H$2,ROW(Activity)-MIN(ROW(Activity))+1),ROWS($B$3:B79)))&CHAR(10),\"\")","v":""}]
[null,{"$f":"IFERROR(INDEX(Activity,SMALL(IF(Target=$B$2,ROW(Activity)-MIN(ROW(Activity))+1),ROWS($B$3:B80)))&\" \"&CHAR(10)&(INDEX(Result,SMALL(IF(Target=$B$2,ROW(Result)-MIN(ROW(Result))+1),ROWS($B$3:B80))))&CHAR(10),\"\")","v":""},null,{"$f":"IFERROR(INDEX(Activity,SMALL(IF(Target=$D$2,ROW(Activity)-MIN(ROW(Activity))+1),ROWS($B$3:B80)))&CHAR(10),\"\")","v":""},null,{"$f":"IFERROR(INDEX(Activity,SMALL(IF(Target=$F$2,ROW(Activity)-MIN(ROW(Activity))+1),ROWS($B$3:B80)))&CHAR(10),\"\")","v":""},null,{"$f":"IFERROR(INDEX(Activity,SMALL(IF(Target=$H$2,ROW(Activity)-MIN(ROW(Activity))+1),ROWS($B$3:B80)))&CHAR(10),\"\")","v":""}]
[null,{"$f":"IFERROR(INDEX(Activity,SMALL(IF(Target=$B$2,ROW(Activity)-MIN(ROW(Activity))+1),ROWS($B$3:B81)))&\" \"&CHAR(10)&(INDEX(Result,SMALL(IF(Target=$B$2,ROW(Result)-MIN(ROW(Result))+1),ROWS($B$3:B81))))&CHAR(10),\"\")","v":""},null,{"$f":"IFERROR(INDEX(Activity,SMALL(IF(Target=$D$2,ROW(Activity)-MIN(ROW(Activity))+1),ROWS($B$3:B81)))&CHAR(10),\"\")","v":""},null,{"$f":"IFERROR(INDEX(Activity,SMALL(IF(Target=$F$2,ROW(Activity)-MIN(ROW(Activity))+1),ROWS($B$3:B81)))&CHAR(10),\"\")","v":""},null,{"$f":"IFERROR(INDEX(Activity,SMALL(IF(Target=$H$2,ROW(Activity)-MIN(ROW(Activity))+1),ROWS($B$3:B81)))&CHAR(10),\"\")","v":""}]
[null,{"$f":"IFERROR(INDEX(Activity,SMALL(IF(Target=$B$2,ROW(Activity)-MIN(ROW(Activity))+1),ROWS($B$3:B82)))&\" \"&CHAR(10)&(INDEX(Result,SMALL(IF(Target=$B$2,ROW(Result)-MIN(ROW(Result))+1),ROWS($B$3:B82))))&CHAR(10),\"\")","v":""},null,{"$f":"IFERROR(INDEX(Activity,SMALL(IF(Target=$D$2,ROW(Activity)-MIN(ROW(Activity))+1),ROWS($B$3:B82)))&CHAR(10),\"\")","v":""},null,{"$f":"IFERROR(INDEX(Activity,SMALL(IF(Target=$F$2,ROW(Activity)-MIN(ROW(Activity))+1),ROWS($B$3:B82)))&CHAR(10),\"\")","v":""},null,{"$f":"IFERROR(INDEX(Activity,SMALL(IF(Target=$H$2,ROW(Activity)-MIN(ROW(Activity))+1),ROWS($B$3:B82)))&CHAR(10),\"\")","v":""}]
[null,{"$f":"IFERROR(INDEX(Activity,SMALL(IF(Target=$B$2,ROW(Activity)-MIN(ROW(Activity))+1),ROWS($B$3:B83)))&\" \"&CHAR(10)&(INDEX(Result,SMALL(IF(Target=$B$2,ROW(Result)-MIN(ROW(Result))+1),ROWS($B$3:B83))))&CHAR(10),\"\")","v":""},null,{"$f":"IFERROR(INDEX(Activity,SMALL(IF(Target=$D$2,ROW(Activity)-MIN(ROW(Activity))+1),ROWS($B$3:B83)))&CHAR(10),\"\")","v":""},null,{"$f":"IFERROR(INDEX(Activity,SMALL(IF(Target=$F$2,ROW(Activity)-MIN(ROW(Activity))+1),ROWS($B$3:B83)))&CHAR(10),\"\")","v":""},null,{"$f":"IFERROR(INDEX(Activity,SMALL(IF(Target=$H$2,ROW(Activity)-MIN(ROW(Activity))+1),ROWS($B$3:B83)))&CHAR(10),\"\")","v":""}]
[null,{"$f":"IFERROR(INDEX(Activity,SMALL(IF(Target=$B$2,ROW(Activity)-MIN(ROW(Activity))+1),ROWS($B$3:B84)))&\" \"&CHAR(10)&(INDEX(Result,SMALL(IF(Target=$B$2,ROW(Result)-MIN(ROW(Result))+1),ROWS($B$3:B84))))&CHAR(10),\"\")","v":""},null,{"$f":"IFERROR(INDEX(Activity,SMALL(IF(Target=$D$2,ROW(Activity)-MIN(ROW(Activity))+1),ROWS($B$3:B84)))&CHAR(10),\"\")","v":""},null,{"$f":"IFERROR(INDEX(Activity,SMALL(IF(Target=$F$2,ROW(Activity)-MIN(ROW(Activity))+1),ROWS($B$3:B84)))&CHAR(10),\"\")","v":""},null,{"$f":"IFERROR(INDEX(Activity,SMALL(IF(Target=$H$2,ROW(Activity)-MIN(ROW(Activity))+1),ROWS($B$3:B84)))&CHAR(10),\"\")","v":""}]
[null,{"$f":"IFERROR(INDEX(Activity,SMALL(IF(Target=$B$2,ROW(Activity)-MIN(ROW(Activity))+1),ROWS($B$3:B85)))&\" \"&CHAR(10)&(INDEX(Result,SMALL(IF(Target=$B$2,ROW(Result)-MIN(ROW(Result))+1),ROWS($B$3:B85))))&CHAR(10),\"\")","v":""},null,{"$f":"IFERROR(INDEX(Activity,SMALL(IF(Target=$D$2,ROW(Activity)-MIN(ROW(Activity))+1),ROWS($B$3:B85)))&CHAR(10),\"\")","v":""},null,{"$f":"IFERROR(INDEX(Activity,SMALL(IF(Target=$F$2,ROW(Activity)-MIN(ROW(Activity))+1),ROWS($B$3:B85)))&CHAR(10),\"\")","v":""},null,{"$f":"IFERROR(INDEX(Activity,SMALL(IF(Target=$H$2,ROW(Activity)-MIN(ROW(Activity))+1),ROWS($B$3:B85)))&CHAR(10),\"\")","v":""}]
[null,{"$f":"IFERROR(INDEX(Activity,SMALL(IF(Target=$B$2,ROW(Activity)-MIN(ROW(Activity))+1),ROWS($B$3:B86)))&\" \"&CHAR(10)&(INDEX(Result,SMALL(IF(Target=$B$2,ROW(Result)-MIN(ROW(Result))+1),ROWS($B$3:B86))))&CHAR(10),\"\")","v":""},null,{"$f":"IFERROR(INDEX(Activity,SMALL(IF(Target=$D$2,ROW(Activity)-MIN(ROW(Activity))+1),ROWS($B$3:B86)))&CHAR(10),\"\")","v":""},null,{"$f":"IFERROR(INDEX(Activity,SMALL(IF(Target=$F$2,ROW(Activity)-MIN(ROW(Activity))+1),ROWS($B$3:B86)))&CHAR(10),\"\")","v":""},null,{"$f":"IFERROR(INDEX(Activity,SMALL(IF(Target=$H$2,ROW(Activity)-MIN(ROW(Activity))+1),ROWS($B$3:B86)))&CHAR(10),\"\")","v":""}]
[null,{"$f":"IFERROR(INDEX(Activity,SMALL(IF(Target=$B$2,ROW(Activity)-MIN(ROW(Activity))+1),ROWS($B$3:B87)))&\" \"&CHAR(10)&(INDEX(Result,SMALL(IF(Target=$B$2,ROW(Result)-MIN(ROW(Result))+1),ROWS($B$3:B87))))&CHAR(10),\"\")","v":""},null,{"$f":"IFERROR(INDEX(Activity,SMALL(IF(Target=$D$2,ROW(Activity)-MIN(ROW(Activity))+1),ROWS($B$3:B87)))&CHAR(10),\"\")","v":""},null,{"$f":"IFERROR(INDEX(Activity,SMALL(IF(Target=$F$2,ROW(Activity)-MIN(ROW(Activity))+1),ROWS($B$3:B87)))&CHAR(10),\"\")","v":""},null,{"$f":"IFERROR(INDEX(Activity,SMALL(IF(Target=$H$2,ROW(Activity)-MIN(ROW(Activity))+1),ROWS($B$3:B87)))&CHAR(10),\"\")","v":""}]
[null,{"$f":"IFERROR(INDEX(Activity,SMALL(IF(Target=$B$2,ROW(Activity)-MIN(ROW(Activity))+1),ROWS($B$3:B88)))&\" \"&CHAR(10)&(INDEX(Result,SMALL(IF(Target=$B$2,ROW(Result)-MIN(ROW(Result))+1),ROWS($B$3:B88))))&CHAR(10),\"\")","v":""},null,{"$f":"IFERROR(INDEX(Activity,SMALL(IF(Target=$D$2,ROW(Activity)-MIN(ROW(Activity))+1),ROWS($B$3:B88)))&CHAR(10),\"\")","v":""},null,{"$f":"IFERROR(INDEX(Activity,SMALL(IF(Target=$F$2,ROW(Activity)-MIN(ROW(Activity))+1),ROWS($B$3:B88)))&CHAR(10),\"\")","v":""},null,{"$f":"IFERROR(INDEX(Activity,SMALL(IF(Target=$H$2,ROW(Activity)-MIN(ROW(Activity))+1),ROWS($B$3:B88)))&CHAR(10),\"\")","v":""}]
[null,{"$f":"IFERROR(INDEX(Activity,SMALL(IF(Target=$B$2,ROW(Activity)-MIN(ROW(Activity))+1),ROWS($B$3:B89)))&\" \"&CHAR(10)&(INDEX(Result,SMALL(IF(Target=$B$2,ROW(Result)-MIN(ROW(Result))+1),ROWS($B$3:B89))))&CHAR(10),\"\")","v":""},null,{"$f":"IFERROR(INDEX(Activity,SMALL(IF(Target=$D$2,ROW(Activity)-MIN(ROW(Activity))+1),ROWS($B$3:B89)))&CHAR(10),\"\")","v":""},null,{"$f":"IFERROR(INDEX(Activity,SMALL(IF(Target=$F$2,ROW(Activity)-MIN(ROW(Activity))+1),ROWS($B$3:B89)))&CHAR(10),\"\")","v":""},null,{"$f":"IFERROR(INDEX(Activity,SMALL(IF(Target=$H$2,ROW(Activity)-MIN(ROW(Activity))+1),ROWS($B$3:B89)))&CHAR(10),\"\")","v":""}]
[null,{"$f":"IFERROR(INDEX(Activity,SMALL(IF(Target=$B$2,ROW(Activity)-MIN(ROW(Activity))+1),ROWS($B$3:B90)))&\" \"&CHAR(10)&(INDEX(Result,SMALL(IF(Target=$B$2,ROW(Result)-MIN(ROW(Result))+1),ROWS($B$3:B90))))&CHAR(10),\"\")","v":""},null,{"$f":"IFERROR(INDEX(Activity,SMALL(IF(Target=$D$2,ROW(Activity)-MIN(ROW(Activity))+1),ROWS($B$3:B90)))&CHAR(10),\"\")","v":""},null,{"$f":"IFERROR(INDEX(Activity,SMALL(IF(Target=$F$2,ROW(Activity)-MIN(ROW(Activity))+1),ROWS($B$3:B90)))&CHAR(10),\"\")","v":""},null,{"$f":"IFERROR(INDEX(Activity,SMALL(IF(Target=$H$2,ROW(Activity)-MIN(ROW(Activity))+1),ROWS($B$3:B90)))&CHAR(10),\"\")","v":""}]
[null,{"$f":"IFERROR(INDEX(Activity,SMALL(IF(Target=$B$2,ROW(Activity)-MIN(ROW(Activity))+1),ROWS($B$3:B91)))&\" \"&CHAR(10)&(INDEX(Result,SMALL(IF(Target=$B$2,ROW(Result)-MIN(ROW(Result))+1),ROWS($B$3:B91))))&CHAR(10),\"\")","v":""},null,{"$f":"IFERROR(INDEX(Activity,SMALL(IF(Target=$D$2,ROW(Activity)-MIN(ROW(Activity))+1),ROWS($B$3:B91)))&CHAR(10),\"\")","v":""},null,{"$f":"IFERROR(INDEX(Activity,SMALL(IF(Target=$F$2,ROW(Activity)-MIN(ROW(Activity))+1),ROWS($B$3:B91)))&CHAR(10),\"\")","v":""},null,{"$f":"IFERROR(INDEX(Activity,SMALL(IF(Target=$H$2,ROW(Activity)-MIN(ROW(Activity))+1),ROWS($B$3:B91)))&CHAR(10),\"\")","v":""}]
[null,{"$f":"IFERROR(INDEX(Activity,SMALL(IF(Target=$B$2,ROW(Activity)-MIN(ROW(Activity))+1),ROWS($B$3:B92)))&\" \"&CHAR(10)&(INDEX(Result,SMALL(IF(Target=$B$2,ROW(Result)-MIN(ROW(Result))+1),ROWS($B$3:B92))))&CHAR(10),\"\")","v":""},null,{"$f":"IFERROR(INDEX(Activity,SMALL(IF(Target=$D$2,ROW(Activity)-MIN(ROW(Activity))+1),ROWS($B$3:B92)))&CHAR(10),\"\")","v":""},null,{"$f":"IFERROR(INDEX(Activity,SMALL(IF(Target=$F$2,ROW(Activity)-MIN(ROW(Activity))+1),ROWS($B$3:B92)))&CHAR(10),\"\")","v":""},null,{"$f":"IFERROR(INDEX(Activity,SMALL(IF(Target=$H$2,ROW(Activity)-MIN(ROW(Activity))+1),ROWS($B$3:B92)))&CHAR(10),\"\")","v":""}]
[null,{"$f":"IFERROR(INDEX(Activity,SMALL(IF(Target=$B$2,ROW(Activity)-MIN(ROW(Activity))+1),ROWS($B$3:B93)))&\" \"&CHAR(10)&(INDEX(Result,SMALL(IF(Target=$B$2,ROW(Result)-MIN(ROW(Result))+1),ROWS($B$3:B93))))&CHAR(10),\"\")","v":""},null,{"$f":"IFERROR(INDEX(Activity,SMALL(IF(Target=$D$2,ROW(Activity)-MIN(ROW(Activity))+1),ROWS($B$3:B93)))&CHAR(10),\"\")","v":""},null,{"$f":"IFERROR(INDEX(Activity,SMALL(IF(Target=$F$2,ROW(Activity)-MIN(ROW(Activity))+1),ROWS($B$3:B93)))&CHAR(10),\"\")","v":""},null,{"$f":"IFERROR(INDEX(Activity,SMALL(IF(Target=$H$2,ROW(Activity)-MIN(ROW(Activity))+1),ROWS($B$3:B93)))&CHAR(10),\"\")","v":""}]
[null,{"$f":"IFERROR(INDEX(Activity,SMALL(IF(Target=$B$2,ROW(Activity)-MIN(ROW(Activity))+1),ROWS($B$3:B94)))&\" \"&CHAR(10)&(INDEX(Result,SMALL(IF(Target=$B$2,ROW(Result)-MIN(ROW(Result))+1),ROWS($B$3:B94))))&CHAR(10),\"\")","v":""},null,{"$f":"IFERROR(INDEX(Activity,SMALL(IF(Target=$D$2,ROW(Activity)-MIN(ROW(Activity))+1),ROWS($B$3:B94)))&CHAR(10),\"\")","v":""},null,{"$f":"IFERROR(INDEX(Activity,SMALL(IF(Target=$F$2,ROW(Activity)-MIN(ROW(Activity))+1),ROWS($B$3:B94)))&CHAR(10),\"\")","v":""},null,{"$f":"IFERROR(INDEX(Activity,SMALL(IF(Target=$H$2,ROW(Activity)-MIN(ROW(Activity))+1),ROWS($B$3:B94)))&CHAR(10),\"\")","v":""}]
[null,{"$f":"IFERROR(INDEX(Activity,SMALL(IF(Target=$B$2,ROW(Activity)-MIN(ROW(Activity))+1),ROWS($B$3:B95)))&\" \"&CHAR(10)&(INDEX(Result,SMALL(IF(Target=$B$2,ROW(Result)-MIN(ROW(Result))+1),ROWS($B$3:B95))))&CHAR(10),\"\")","v":""},null,{"$f":"IFERROR(INDEX(Activity,SMALL(IF(Target=$D$2,ROW(Activity)-MIN(ROW(Activity))+1),ROWS($B$3:B95)))&CHAR(10),\"\")","v":""},null,{"$f":"IFERROR(INDEX(Activity,SMALL(IF(Target=$F$2,ROW(Activity)-MIN(ROW(Activity))+1),ROWS($B$3:B95)))&CHAR(10),\"\")","v":""},null,{"$f":"IFERROR(INDEX(Activity,SMALL(IF(Target=$H$2,ROW(Activity)-MIN(ROW(Activity))+1),ROWS($B$3:B95)))&CHAR(10),\"\")","v":""}]
[null,{"$f":"IFERROR(INDEX(Activity,SMALL(IF(Target=$B$2,ROW(Activity)-MIN(ROW(Activity))+1),ROWS($B$3:B96)))&\" \"&CHAR(10)&(INDEX(Result,SMALL(IF(Target=$B$2,ROW(Result)-MIN(ROW(Result))+1),ROWS($B$3:B96))))&CHAR(10),\"\")","v":""},null,{"$f":"IFERROR(INDEX(Activity,SMALL(IF(Target=$D$2,ROW(Activity)-MIN(ROW(Activity))+1),ROWS($B$3:B96)))&CHAR(10),\"\")","v":""},null,{"$f":"IFERROR(INDEX(Activity,SMALL(IF(Target=$F$2,ROW(Activity)-MIN(ROW(Activity))+1),ROWS($B$3:B96)))&CHAR(10),\"\")","v":""},null,{"$f":"IFERROR(INDEX(Activity,SMALL(IF(Target=$H$2,ROW(Activity)-MIN(ROW(Activity))+1),ROWS($B$3:B96)))&CHAR(10),\"\")","v":""}]
[null,{"$f":"IFERROR(INDEX(Activity,SMALL(IF(Target=$B$2,ROW(Activity)-MIN(ROW(Activity))+1),ROWS($B$3:B97)))&\" \"&CHAR(10)&(INDEX(Result,SMALL(IF(Target=$B$2,ROW(Result)-MIN(ROW(Result))+1),ROWS($B$3:B97))))&CHAR(10),\"\")","v":""},null,{"$f":"IFERROR(INDEX(Activity,SMALL(IF(Target=$D$2,ROW(Activity)-MIN(ROW(Activity))+1),ROWS($B$3:B97)))&CHAR(10),\"\")","v":""},null,{"$f":"IFERROR(INDEX(Activity,SMALL(IF(Target=$F$2,ROW(Activity)-MIN(ROW(Activity))+1),ROWS($B$3:B97)))&CHAR(10),\"\")","v":""},null,{"$f":"IFERROR(INDEX(Activity,SMALL(IF(Target=$H$2,ROW(Activity)-MIN(ROW(Activity))+1),ROWS($B$3:B97)))&CHAR(10),\"\")","v":""}]
[null,{"$f":"IFERROR(INDEX(Activity,SMALL(IF(Target=$B$2,ROW(Activity)-MIN(ROW(Activity))+1),ROWS($B$3:B98)))&\" \"&CHAR(10)&(INDEX(Result,SMALL(IF(Target=$B$2,ROW(Result)-MIN(ROW(Result))+1),ROWS($B$3:B98))))&CHAR(10),\"\")","v":""},null,{"$f":"IFERROR(INDEX(Activity,SMALL(IF(Target=$D$2,ROW(Activity)-MIN(ROW(Activity))+1),ROWS($B$3:B98)))&CHAR(10),\"\")","v":""},null,{"$f":"IFERROR(INDEX(Activity,SMALL(IF(Target=$F$2,ROW(Activity)-MIN(ROW(Activity))+1),ROWS($B$3:B98)))&CHAR(10),\"\")","v":""},null,{"$f":"IFERROR(INDEX(Activity,SMALL(IF(Target=$H$2,ROW(Activity)-MIN(ROW(Activity))+1),ROWS($B$3:B98)))&CHAR(10),\"\")","v":""}]
[null,{"$f":"IFERROR(INDEX(Activity,SMALL(IF(Target=$B$2,ROW(Activity)-MIN(ROW(Activity))+1),ROWS($B$3:B99)))&\" \"&CHAR(10)&(INDEX(Result,SMALL(IF(Target=$B$2,ROW(Result)-MIN(ROW(Result))+1),ROWS($B$3:B99))))&CHAR(10),\"\")","v":""},null,{"$f":"IFERROR(INDEX(Activity,SMALL(IF(Target=$D$2,ROW(Activity)-MIN(ROW(Activity))+1),ROWS($B$3:B99)))&CHAR(10),\"\")","v":""},null,{"$f":"IFERROR(INDEX(Activity,SMALL(IF(Target=$F$2,ROW(Activity)-MIN(ROW(Activity))+1),ROWS($B$3:B99)))&CHAR(10),\"\")","v":""},null,{"$f":"IFERROR(INDEX(Activity,SMALL(IF(Target=$H$2,ROW(Activity)-MIN(ROW(Activity))+1),ROWS($B$3:B99)))&CHAR(10),\"\")","v":""}]
[null,{"$f":"IFERROR(INDEX(Activity,SMALL(IF(Target=$B$2,ROW(Activity)-MIN(ROW(Activity))+1),ROWS($B$3:B100)))&\" \"&CHAR(10)&(INDEX(Result,SMALL(IF(Target=$B$2,ROW(Result)-MIN(ROW(Result))+1),ROWS($B$3:B100))))&CHAR(10),\"\")","v":""},null,{"$f":"IFERROR(INDEX(Activity,SMALL(IF(Target=$D$2,ROW(Activity)-MIN(ROW(Activity))+1),ROWS($B$3:B100)))&CHAR(10),\"\")","v":""},null,{"$f":"IFERROR(INDEX(Activity,SMALL(IF(Target=$F$2,ROW(Activity)-MIN(ROW(Activity))+1),ROWS($B$3:B100)))&CHAR(10),\"\")","v":""},null,{"$f":"IFERROR(INDEX(Activity,SMALL(IF(Target=$H$2,ROW(Activity)-MIN(ROW(Activity))+1),ROWS($B$3:B100)))&CHAR(10),\"\")","v":""}]

{"sheet":"About","index":2,"n_rows":6,"n_cols":1,"rows_kept":6}
["About this workbook"]
["Guide for screen readers"]
["There are 3 worksheets in this workbook. \n\nRoadmap data\nAgile Roadmap\nAbout\n\nThe instructions for each worksheet are in the A column starting in cell A1 of each worksheet. They are written with hidden text. Each step guides you through the information in that row. Each subsequent step continues in cell A2, A3 and so on, unless otherwise explicitly directed. For example, instruction text might say “continue to cell A6” for the next step. \n\nHidden text will not print.\n\nTo remove these instructions from any worksheet, simply delete column A.\n"]
["About this workbook"]
["Enter milestone information in the Roadmap Data worksheet.  Make sure that you sort by priority followed by milestone to capture the Completed, Current, Near Term and Future view in decreasing priority – with highest priority items listed at the top. The Roadmap in the Agile Roadmap worksheet is auto-updated.\n"]
["This is the last instruction in this worksheet."]